Cogmind - Beta 16.1 @@@ ROGUE MODE // 2026.05.03 @ 22:00:53 Player: Dwarfinator Result: Heading to fleet! Performance ------------- Evolutions (9) 4500 Regions Visited (33) 6600 Robots Destroyed (160) 800 Value Destroyed (8009) 8009 Prototype IDs (119) 2380 Alien Tech Used (8) 1600 Bonus (41301) 41301 TOTAL SCORE: 65190 Bonus ------- Triggered High Security 500 High Alert Combat Kills 1768 Follower Combat Kills 18791 Entered Garrisons 200 Met Data Miner 300 Met Imprinter 300 Destroyed Z-Imprinter 1000 Triggered Deep Caves Wall 500 Exposed GOLEM Chamber 500 Acquired ECA 300 Met Zhirov 300 Met Warlord at Base 500 MAIN.C Attacked Warlord 500 Used Core Reset Matrix 3000 Met Warlord at Research 2000 Scanned by Researcher 500 Met Sigix 2000 Recovered Sigix Corpse 6000 Win 3000 Friendly Fire -658 Cogmind --------- Core Integrity 1257/1600 Matter 564/700 Energy 1509/1950 System Corruption 0% +Membrane Temperature Cool (12) Movement Walking (103) Location To Fleet Rendezvous Parts ------- > --- POWER (3) -------- Improved Quantum Reactor Vortex Chain Reactor > --- PROPULSION (7) --- Improved Thunder Leg Enhanced Biometal Leg Centrium Leg Centrium Leg Myomer Exoskeleton > --- UTILITY (10) ----- High-capacity Storage Unit Assembled Biocell Array Advanced Matter Compressor Assembled Combat Suite Assembled Alloy Armor Advanced Remote Force Field (fused) Microwarp Drive > --- WEAPON (6) ------- Cooled Nova Cannon 1B-0RG's Assimilator > --- INVENTORY (24) --- Biometal Leg Biometal Leg Experimental Coolant Injector Experimental Energy Well (600) Zionite Biocell (600) Advanced Matter Compressor (0) Experimental Weapon Cycler Improved Transmission Jammer Improved Reaction Control System Experimental Utility Shielding Graphene Brace Long-range Tractor Beam Transdimensional Reconstructor Transdimensional Reconstructor High-powered Transdimensional Reconstructor Omega Cannon Z-bomb Delivery System Advanced Remote Datajack Multitool Sigix Corpse Sigix Corpse Sigix Corpse Peak State ------------ > --- POWER ------------ Improved Quantum Reactor Vortex Chain Reactor > --- PROPULSION ------- Improved Thunder Leg Enhanced Biometal Leg Centrium Leg Centrium Leg Myomer Exoskeleton > --- UTILITY ---------- High-capacity Storage Unit Assembled Biocell Array Advanced Matter Compressor Advanced Matter Compressor Assembled Combat Suite Assembled Alloy Armor Advanced Remote Force Field Microwarp Drive > --- WEAPON ----------- Cooled Nova Cannon 1B-0RG's Assimilator > --- INVENTORY -------- Biometal Leg Biometal Leg Experimental Coolant Injector Experimental Energy Well Zionite Biocell Experimental Weapon Cycler Improved Transmission Jammer Improved Reaction Control System Experimental Utility Shielding Graphene Brace Long-range Tractor Beam Transdimensional Reconstructor Transdimensional Reconstructor High-powered Transdimensional Reconstructor Subatomic Replicator Omega Cannon Z-bomb Delivery System Advanced Remote Datajack Multitool Sigix Corpse Sigix Corpse [Rating: 295] Favorites ----------- Power Improved Ion Engine Engine Improved Ion Engine Power Core Micro Fission Core Reactor Fusion Reactor Propulsion Assembled Alloy Leg Treads Light Treads Leg Assembled Alloy Leg Wheel Armored Huge Wheel Hover Unit Cooled Gravmag System Flight Unit Improved VTOL Module Utility Huge Storage Unit Device Experimental Heat Sink Storage Huge Storage Unit Processor Experimental Targeting Computer Hackware Advanced Hacking Suite Protection Assembled Alloy Armor Artifact Microwarp Drive Weapon 1B-0RG's Assimilator Energy Gun Zionite Phaser-S Energy Cannon Phase Cannon Ballistic Gun Assault Rifle Ballistic Cannon Light Cannon Launcher Rocket Launcher Special Weapon Improved Remote Datajack Slashing Weapon Power Sword Piercing Weapon CR-A16's Pointy Stick Special Melee Weapon 1B-0RG's Assimilator Build | -11 -10 -10 -10 -8 -8 -7 -7 -7 -7 -6 -6 -6 -6 -6 -6 -5 -5 -5 -5 -5 -4 -4 -4 -4 -4 -3 -3 -3 -2 -2 -2 -1 -1 ------- Run | Yrd Mat Min Sub Mat Gar Fac Low Low Dat Pro Fac Low Low Zio Dee Pro Fac Upp Upp Zhi Pro Fac Upp Upp War Pro Res Tes Res Qua Sec Acc Com Slots Evolved 18 | . . . . 4 . 2 . . . . 2 . . . . . 2 . . . . 2 . . . . 2 . 2 . . 2 . Power 1 | . . . . . . . . . . . . . . . . . . . . . . . . . . . . . . . . 1 . Propulsion 5 | . . . . . . . . . . . 1 . . . . . 1 . . . . 1 . . . . 1 . . . . 1 . Utility 8 | . . . . . . 2 . . . . 1 . . . . . 1 . . . . 1 . . . . 1 . 2 . . . . Weapon 4 | . . . . 4 . . . . . . . . . . . . . . . . . . . . . . . . . . . . . Parts Attached 181 | 4 10 5 15 10 5 8 2 2 3 1 4 3 . 4 24 1 4 . . 7 7 3 2 6 7 2 4 11 4 9 3 6 5 Power 15 | 1 1 . 1 1 . 1 . . . . 1 . . . 1 . . . . 2 2 . . 2 1 . . . . . . 1 . Engine 6 | 1 1 . 1 1 . 1 . . . . 1 . . . . . . . . . . . . . . . . . . . . . . Core 3 | . . . . . . . . . . . . . . . . . . . . . 1 . . 2 . . . . . . . . . Reactor 6 | . . . . . . . . . . . . . . . 1 . . . . 2 1 . . . 1 . . . . . . 1 . Propulsion 28 | 2 1 . 3 3 . 2 . . . . 1 . . . 3 . 2 . . 2 2 . . . 1 . . 3 2 . . 1 . Treads 7 | 2 1 . 1 . . . . . . . . . . . 1 . 2 . . . . . . . . . . . . . . . . Leg 10 | . . . . . . . . . . . . . . . 1 . . . . . 2 . . . 1 . . 3 2 . . 1 . Wheel 9 | . . . 2 2 . 2 . . . . 1 . . . 1 . . . . 1 . . . . . . . . . . . . . Hover 1 | . . . . . . . . . . . . . . . . . . . . 1 . . . . . . . . . . . . . Flight 1 | . . . . 1 . . . . . . . . . . . . . . . . . . . . . . . . . . . . . Utility 92 | 1 3 4 1 3 1 3 2 2 2 . 2 2 . 2 15 1 2 . . 3 2 3 1 4 5 1 2 5 2 8 2 3 5 Device 47 | . 2 2 . . . 1 . 1 . . 2 1 . 1 5 1 1 . . 1 1 3 1 4 2 . 2 4 2 6 1 2 1 Storage 20 | 1 1 2 . 1 1 2 1 1 2 . . . . . 1 . . . . 1 1 . . . . 1 . 1 . 1 1 . 1 Processor 2 | . . . . . . . . . . . . . . . . . . . . . . . . . 2 . . . . . . . . Hackware 5 | . . . . 1 . . . . . . . . . . . . . . . . . . . . . . . . . 1 . 1 2 Protection 17 | . . . 1 1 . . 1 . . . . 1 . 1 9 . 1 . . 1 . . . . 1 . . . . . . . . Artifact 1 | . . . . . . . . . . . . . . . . . . . . . . . . . . . . . . . . . 1 Weapon 46 | . 5 1 10 3 4 2 . . 1 1 . 1 . 2 5 . . . . . 1 . 1 . . 1 2 3 . 1 1 1 . Energy Gun 7 | . 1 . 2 . . . . . . . . . . . 3 . . . . . . . . . . . . 1 . . . . . Energy Cannon 15 | . . . 5 1 2 1 . . . . . . . 1 . . . . . . . . 1 . . . 2 2 . . . . . Ballistic Gun 3 | . 2 . 1 . . . . . . . . . . . . . . . . . . . . . . . . . . . . . . Ballistic Cannon 4 | . 1 . 1 1 . . . . . 1 . . . . . . . . . . . . . . . . . . . . . . . Launcher 2 | . . 1 . . . . . . . . . . . . . . . . . . . . . . . . . . . . . 1 . Special Weapon 8 | . 1 . . . 1 . . . . . . . . 1 1 . . . . . 1 . . . . 1 . . . 1 1 . . Impact Weapon . | . . . . . . . . . . . . . . . . . . . . . . . . . . . . . . . . . . Slashing Weapon 3 | . . . . . 1 . . . 1 . . 1 . . . . . . . . . . . . . . . . . . . . . Piercing Weapon 2 | . . . 1 . . . . . . . . . . . 1 . . . . . . . . . . . . . . . . . . Special Melee Weapon 2 | . . . . 1 . 1 . . . . . . . . . . . . . . . . . . . . . . . . . . . Unidentified Prototypes 41 | . . 1 . 2 1 . . . . . . . 1 2 11 . . . . 4 . . . . 6 . . 7 . 3 1 2 . Corrupted Parts 1 | . . . . . . . . . . . . . . . . . . . . . 1 . . . . . . . . . . . . System Corruption 4 | . . . . . . . . . . . . . . . . . . . . . 4 . . . . . . . . . . . . Parts Lost 16 | . 3 . 3 . . 2 . . . . . . . . 4 . . . . . 3 1 . . . . . . . . . . . Power 3 | . 1 . . . . 1 . . . . . . . . . . . . . . 1 . . . . . . . . . . . . Propulsion 3 | . 1 . . . . 1 . . . . . . . . 1 . . . . . . . . . . . . . . . . . . Utility 7 | . . . 2 . . . . . . . . . . . 3 . . . . . 1 1 . . . . . . . . . . . Weapon 3 | . 1 . 1 . . . . . . . . . . . . . . . . . 1 . . . . . . . . . . . . Highest Loss Streak 4 | . 2 . 2 . . 2 . . . . . . . . 4 . . . . . 1 1 . . . . . . . . . . . To Critical Strikes . | . . . . . . . . . . . . . . . . . . . . . . . . . . . . . . . . . . Average Backups 18 | 4 8 10 7 11 17 21 23 23 23 23 23 23 23 23 21 19 18 20 19 20 20 15 16 16 15 16 15 15 15 16 16 18 18 Power . | . . . . . . . 1 1 1 1 1 1 . . . . . . . . . . . . . . . . . . . . . Propulsion 1 | 2 3 3 1 2 2 2 2 2 2 2 3 3 3 3 2 1 1 1 1 . 1 . . . 1 2 1 1 1 . . . . Utility 9 | . 2 2 1 4 8 12 12 13 13 13 12 13 12 11 12 12 11 13 12 13 12 8 9 9 8 9 8 7 6 7 7 10 10 Weapon 3 | 2 2 3 3 2 4 4 4 4 4 4 3 3 3 6 5 3 2 3 3 3 3 3 3 3 3 2 3 3 3 4 2 2 2 Tool/Special . | . . . . . . . . . . . . . . . . . . . . . . . . . . . . . . . . . . Unused Backups 65 | . 5 2 3 4 3 3 3 . . . 1 . 2 4 8 . 1 . . . 3 . . 1 1 . 2 2 3 2 2 2 8 Power 2 | . . . . . . . . . . . 1 . . 1 . . . . . . . . . . . . . . . . . . . Propulsion 13 | . 1 . . 3 . . 1 . . . . . . 1 . . 1 . . . . . . . . . 1 . 2 1 . . 2 Utility 28 | . 2 2 . . 2 . . . . . . . 2 2 7 . . . . . 3 . . 1 . . . . 1 1 1 2 2 Weapon 18 | . 2 . 3 . 1 3 2 . . . . . . . 1 . . . . . . . . . 1 . 1 2 . . 1 . 1 Tool/Special 4 | . . . . 1 . . . . . . . . . . . . . . . . . . . . . . . . . . . . 3 Average Slot Usage (%) 70 | . 97 100 87 63 63 63 61 61 61 61 65 66 66 68 67 75 69 66 66 65 63 72 74 76 77 75 76 69 67 68 69 72 71 Engine 6 | . 13 14 11 9 9 6 7 7 7 7 6 6 8 12 12 12 11 11 11 5 . . . . . . . . . . . . . Reactor 1 | . . . . . . . . . . . . . . . . . . . . 4 5 8 5 5 4 5 4 4 4 4 4 6 7 Treads 2 | . 27 28 16 . . . . . . . . . . . . . 5 5 5 5 4 . . . . . . . . . . . . Leg 8 | . . . . . . . . . . . . . . . 6 18 5 5 5 5 6 24 25 25 25 25 27 19 16 16 16 19 18 Wheel 5 | . . . 11 17 18 9 7 7 7 7 13 13 12 12 7 . 4 5 5 5 4 . . . . . . . . . . . . Device 10 | . 13 1 7 8 . 5 2 10 10 10 17 12 6 6 7 11 14 16 12 8 9 14 14 16 13 12 14 11 16 17 19 17 11 Storage 11 | . 14 26 8 9 9 9 15 12 14 11 8 13 18 15 7 11 10 5 8 11 10 10 15 13 11 10 9 10 11 9 8 7 8 Hackware 1 | . . . . . 9 7 7 1 . . . . . . . . . . . . . . . . . . . . . 3 4 4 10 Protection 5 | . . . 2 . . 6 3 4 4 6 5 6 6 7 12 7 4 5 5 5 4 5 5 5 5 7 6 8 7 7 7 7 4 Energy Gun 1 | . 7 . 3 . . . . . . . . . . . 1 6 5 4 5 4 . . . . . . . . . . . . . Energy Cannon 2 | . . . 11 4 4 2 5 7 1 . . 5 4 2 3 . . . . . 1 . . . . . . 1 4 2 3 3 2 Ballistic Cannon 1 | . 6 14 9 1 . . . . . 6 3 . . . . . . . . . . . . . . . . . . . . . . Special Melee Weapon 5 | . . . . 8 9 7 7 7 12 7 6 6 6 6 6 6 5 5 5 5 7 5 5 5 5 5 4 4 4 4 4 3 3 Peak Build Rating 295 | 4 8 14 33 80 83 94 94 95 94 93 102 106 103 113 137 134 150 147 147 152 175 181 168 172 184 185 201 229 256 252 256 275 295 Average Rating 131 | 3 7 8 21 76 82 90 93 93 91 92 99 101 101 105 123 130 136 145 143 147 148 173 166 167 177 181 195 216 241 241 250 272 273 On Entrance 128 | . 4 8 8 17 80 82 92 93 94 89 93 100 100 103 102 134 130 146 147 138 147 165 163 167 172 180 182 199 225 244 252 256 270 Avg Prop Armor Cover (%) 9 | . . . 4 . . . . . . . . . . . 2 . 11 10 10 10 10 . . . . . . . . . . . 2 Naked Turns . | . . . . . . . . . . . . . . . . . . . . . . . . . . . . . . . . . . Heaviest Build 209 | 8 19 23 66 91 108 159 162 163 160 165 165 177 187 185 182 173 173 167 171 174 178 141 139 161 156 164 166 171 176 209 176 193 198 Greatest Support 208 | 40 40 40 40 28 28 28 28 28 28 28 40 40 40 40 84 84 84 28 28 28 112 140 140 149 155 155 170 178 178 178 178 208 208 Greatest Overweight (x) 16 | . . . 3 3 4 7 5 5 5 5 4 4 4 4 16 2 6 5 6 6 6 1 . 1 1 1 . . . 1 . . 1 Average Overweight (x) 2 | . . . 1 2 3 5 5 5 5 5 3 3 4 4 3 1 5 5 5 5 5 . . . . . . . . . . . . Largest Inventory Capacity 25 | 8 10 10 10 15 20 25 25 25 25 25 25 25 25 25 25 25 25 25 25 25 25 20 20 20 20 20 20 20 20 20 24 24 24 Average Capacity 21 | 7 9 10 7 13 19 24 25 25 25 25 25 25 25 25 25 25 24 25 25 25 24 20 20 20 20 20 20 20 20 20 21 24 24 Most Carried 25 | 5 10 10 10 15 20 25 25 25 24 25 25 25 25 25 25 25 25 25 25 25 25 20 20 20 20 20 20 20 20 20 24 24 24 Average Carried 21 | 4 8 9 7 11 19 22 24 24 24 24 24 24 24 24 23 25 23 25 24 24 23 19 19 19 19 20 19 19 19 19 20 23 23 Final Capacity 25 | 8 10 10 10 15 20 25 25 25 25 25 25 25 25 25 25 25 25 25 25 25 20 20 20 20 20 20 20 20 20 20 24 24 24 Final Carried 25 | 5 10 10 10 15 20 25 25 24 24 25 25 25 25 25 25 25 25 25 25 25 20 20 20 20 20 20 20 20 20 20 24 23 23 Class Distribution -------------------- 82% | Mutant 7% | Scavenger-Mutant 5% | Alien-Mutant Dominant Class ---------------- Mutant | -10/Materials Mutant | -10/Mines Mutant | -10/Subcaves Mutant | -8/Materials Mutant | -8/Garrison Mutant | -7/Factory Mutant | -7/Lower Caves Mutant | -7/Lower Caves Mutant | -7/Data Miner Mutant | -6/Proximity Caves Mutant | -6/Factory Mutant | -6/Lower Caves Mutant | -6/Lower Caves Mutant | -6/Zion Mutant | -6/Deep Caves Mutant | -5/Proximity Caves Mutant | -5/Factory Mutant | -5/Upper Caves Mutant | -5/Upper Caves Mutant | -5/Zhirov Mutant | -4/Proximity Caves Scavenger-Mutant | -4/Factory Mutant | -4/Upper Caves Mutant | -4/Upper Caves Commander-Mutant | -4/Warlord Mutant | -3/Proximity Caves Mutant | -3/Research Mutant | -3/Testing Mutant | -2/Research Alien-Mutant | -2/Quarantine Alien-Mutant | -2/Section 7 Alien-Mutant | -1/Access Hacker-Mutant | -1/Command Resources | -11 -10 -10 -10 -8 -8 -7 -7 -7 -7 -6 -6 -6 -6 -6 -6 -5 -5 -5 -5 -5 -4 -4 -4 -4 -4 -3 -3 -3 -2 -2 -2 -1 -1 ----------- Run | Yrd Mat Min Sub Mat Gar Fac Low Low Dat Pro Fac Low Low Zio Dee Pro Fac Upp Upp Zhi Pro Fac Upp Upp War Pro Res Tes Res Qua Sec Acc Com Matter Collected 40090 | 212 480 236 359 1241 1837 1165 1873 1709 . 1580 400 1824 1318 112 1646 752 336 1444 1684 479 1228 973 1836 1272 254 1939 355 2392 538 3474 2490 528 2124 Remotely 9264 | . . . . . . 359 697 622 . 870 162 . . . . . . . . . 153 385 . . 224 . . 840 428 1262 1582 311 1369 Salvage Created 8885 | 5 704 58 342 620 415 256 68 51 . 123 89 96 530 . 862 48 . 68 56 422 175 254 290 439 . 133 . 1098 96 660 506 316 105 Parts 375 | 1 43 5 16 39 31 11 2 1 . 9 3 2 6 . 11 2 . 1 5 14 7 14 6 16 . 2 . 53 1 33 20 13 8 Haulers Intercepted 2 | . 1 . . 1 . . . . . . . . . . . . . . . . . . . . . . . . . . . . . Recyclers Shooed 4 | . 1 . . . . . . . . . . . . . . . . . . . . . . . . . 1 2 . . . . . Parts Field Recycled 88 | . . . . . . . . . . . . 13 24 14 . . . . . . . . . 37 . . . . . . . . . Retrieved Matter 836 | . . . . . . . . . . . . 73 166 119 . . . . . . . . . 478 . . . . . . . . . Parts Self-Destructed 325 | . . . 7 . . . 8 15 . 41 . 24 11 . . 26 . 26 31 11 12 . 28 24 . 61 . . . . . . . Prevented 27 | . . . . . . . . . . . . . . . . . . . . . . . 10 5 . 12 . . . . . . . Parts Restored . | . . . . . . . . . . . . . . . . . . . . . . . . . . . . . . . . . . Kills | -11 -10 -10 -10 -8 -8 -7 -7 -7 -7 -6 -6 -6 -6 -6 -6 -5 -5 -5 -5 -5 -4 -4 -4 -4 -4 -3 -3 -3 -2 -2 -2 -1 -1 ------- Run | Yrd Mat Min Sub Mat Gar Fac Low Low Dat Pro Fac Low Low Zio Dee Pro Fac Upp Upp Zhi Pro Fac Upp Upp War Pro Res Tes Res Qua Sec Acc Com Combat Hostiles Destroyed 151 | . 15 2 9 23 17 3 1 1 . 4 1 1 1 . 32 1 . 2 1 . 1 . 1 . . 2 . 7 1 8 6 5 6 Melee 3 | . . 1 . . . 1 . . . . . . . . . . . . . . . . . . . 1 . . . . . . . Guns 19 | . 13 . . . . . . . . . . . . . 1 1 . 1 1 . . . . . . . . 2 . . . . . Cannons 55 | . 2 1 5 7 4 1 . 1 . 3 1 1 1 . 3 . . . . . 1 . 1 . . . . 3 1 8 4 5 2 AOE 67 | . . . 2 16 13 1 1 . . 1 . . . . 25 . . 1 . . . . . . . 1 . 2 . . . . 4 Classes Destroyed 22 | 1 6 . 4 . 2 . . . . 2 . . . . 3 . . . . . . . . 1 . 1 . . . 1 . . 1 Worker 13 | . 1 . . . . 1 . . . . . . . . . . . . . . . 4 . . . . . 5 . . . 1 1 Tunneler 5 | 1 2 1 . . . . . . . . . . . . . . . . . . . 1 . . . . . . . . . . . Hauler 2 | . 1 . . 1 . . . . . . . . . . . . . . . . . . . . . . . . . . . . . Recycler 7 | . 1 . . . . 1 . . . . . . . . . . . . . . . 1 . . . . . 4 . . . . . Operator 1 | . 1 . . . . . . . . . . . . . . . . . . . . . . . . . . . . . . . . Drone 1 | . . . . . . . . . . 1 . . . . . . . . . . . . . . . . . . . . . . . Swarmer 32 | . 2 . 2 10 13 . 1 . . . . . . . . . . 2 . . . . . . . . . 1 . . . 1 . Cutter 2 | . . . . . 2 . . . . . . . . . . . . . . . . . . . . . . . . . . . . Saboteur 1 | . . . . . . . . . . . . . . . . . . . . . . . . . . . . . . . . . 1 Grunt 44 | . 13 2 . 11 1 2 . 1 . 2 . . 1 . . 1 . . . 1 1 . 1 . . 1 . 1 1 1 . . 3 Sentry 6 | . . . 1 2 . 2 . . . . 1 . . . . . . . . . . . . . . . . . . . . . . Demolisher 1 | . . . . . . . . . . . . . . . . . . . . . . . . . . . . . . 1 . . . Hunter 6 | . . . . . 1 1 . . . . 1 . . . . . . . 1 . . . . . . . . . . 1 . 1 . Programmer 21 | . . . . . . . . . . 1 . 1 . . . . . . . . . . . . . . . 5 . 5 4 3 2 Behemoth 2 | . . . . . . . . . . . . . . . . . . . . . . . . . . 1 . . . . 1 . . S7 Guard 1 | . . . . . . . . . . . . . . . . . . . . . . . . . . . . . . . 1 . . Enhanced Grunt 1 | . . . . . . . . . . . . . . . . . . . . . 1 . . . . . . . . . . . . Lightning 1 | . . . . . . . . . . . . . . . . . . . . . . . . . . . . . . 1 . . . Artisan 1 | . . . 1 . . . . . . . . . . . . . . . . . . . . . . . . . . . . . . Subdweller 6 | . . . 6 . . . . . . . . . . . . . . . . . . . . . . . . . . . . . . Zionite 1 | . . . 1 . . . . . . . . . . . . . . . . . . . . . . . . . . . . . . Z-Light 1 | . . . . . . . . . . . . . . . 1 . . . . . . . . . . . . . . . . . . Decomposer 1 | . . . . . . . . . . . . . . . . . . 1 . . . . . . . . . . . . . . . Packrat 2 | . . . . . . . . . . . . . 2 . . . . . . . . . . . . . . . . . . . . Samaritan 3 | . . . . . . . . . . . . . . . . . . . . . . . . 3 . . . . . . . . . Assembled 28 | . . . . . . . . . . . . . . . 27 . . . . . . . . . . . . . . 1 . . . Golem 4 | . . . . . . . . . . . . . . . 4 . . . . . . . . . . . . . . . . . . Thug 2 | . . . . . . . . . . . . . . . 2 . . . . . . . . . . . . . . . . . . Commander 1 | . . . . . . . . . . . . . . . . . . . . . . . . . . . . . . 1 . . . Best Kill Streak 27 | 1 4 1 3 7 11 2 1 1 . 2 1 1 1 . 27 1 . 1 1 . 1 2 1 . . 1 . 3 1 3 2 4 4 Combat Bots Only 27 | . 4 1 3 7 11 1 1 1 . 2 1 1 1 . 27 1 . 1 1 . 1 . 1 . . 1 . 3 1 3 2 4 4 Max Kills in Single Turn 16 | 1 1 1 1 3 2 3 1 1 . 1 1 1 1 . 16 1 . 1 1 1 1 1 1 1 . 1 . 2 1 1 1 1 4 Gunslinging . | . . . . . . . . . . . . . . . . . . . . . . . . . . . . . . . . . . Exploded 16 | . . . 1 3 2 1 1 . . 1 . . . . 16 . . 1 . . . . . . . 1 . 1 . . . . 4 Melee 1 | . . 1 . . . 1 . . . . . . . . . . . . . . . . . . . 1 . . . . . . . Uniques/NPCs Destroyed 1 | . . . . . . . . . . . . . . . 1 . . . . . . . . . . . . . . . . . . Z-Imprinter (-6/Deep Caves) Combat | -11 -10 -10 -10 -8 -8 -7 -7 -7 -7 -6 -6 -6 -6 -6 -6 -5 -5 -5 -5 -5 -4 -4 -4 -4 -4 -3 -3 -3 -2 -2 -2 -1 -1 -------- Run | Yrd Mat Min Sub Mat Gar Fac Low Low Dat Pro Fac Low Low Zio Dee Pro Fac Upp Upp Zhi Pro Fac Upp Upp War Pro Res Tes Res Qua Sec Acc Com Hostile Shots Fired 826 | . 68 19 32 65 31 78 32 2 . 27 . 6 4 . 67 . 3 12 13 . 33 30 24 . . 19 . 42 4 53 45 22 95 Missed 273 | . 13 3 6 26 9 19 15 . . 10 . 2 2 . 19 . . 3 2 . 7 11 9 . . 10 . 15 1 30 22 9 30 Hits 553 | . 55 16 26 39 22 59 17 2 . 17 . 4 2 . 48 . 3 9 11 . 26 19 15 . . 9 . 27 3 23 23 13 65 Melee 5 | . . . . . . . . . . . . . . . 1 . 3 . . . . . . . . . . . . . . . 1 Projectile 548 | . 55 16 26 39 22 59 17 2 . 17 . 4 2 . 47 . . 9 11 . 26 19 15 . . 9 . 27 3 23 23 13 64 AOE 8 | . . . . . 3 . . . . . . . . . . . . . . . 1 . . . . . . . . 1 . . 3 Critical Strikes 29 | . 2 . 2 . . 2 . . . 1 . 1 . . 1 . . . . . 1 2 4 1 . 1 . 2 . 4 2 2 1 Actively Blocked 3 | . . . . . . . . . . . . . . . 1 . . . . . . . . . . . . . . . 2 . . Part Disruptions 4 | . . . . . . . . . . . . . . . . . . . . . . . 1 . . . . . . 1 . . 2 Damage Taken 9226 | . 675 211 503 548 427 757 137 19 . 152 27 93 50 . 1274 16 91 165 180 12 763 293 243 48 28 118 . 306 41 470 277 234 1068 Core 2012 | . 175 40 . 97 68 131 51 2 . 21 8 39 22 . 316 6 . 91 18 12 161 48 48 15 28 21 . 72 10 127 42 23 320 Absorbed by Shields 2513 | . . . . . 6 32 124 15 . 132 18 79 9 . 159 10 . 58 . . . 103 80 39 . 99 . 231 29 352 218 190 530 Redirected to Shielding 423 | . . . . . . . . . . . . . . . 265 . . . . . . . . . . . . 31 9 18 48 24 28 Ignored by Resistances 1102 | . . . . . . . . . . . . . . . . . . 40 33 . 137 74 62 18 . 42 . 100 11 145 95 83 262 Regen/Repaired (Parts) 2001 | . 81 . . 222 146 208 60 . . 51 127 60 10 . 36 . 15 20 28 . 196 96 8 . 3 28 . 47 . 54 85 97 323 Core Remaining (%) 72 | 100 . . 14 . 70 . . . . 70 . . . . . 54 . . . . 71 . . . . 86 . 94 . . 87 . 78 Volleys Fired 714 | . 64 14 28 42 42 22 10 2 . 22 10 12 11 . 71 7 5 19 28 23 30 2 4 1 12 2 2 25 14 85 45 28 32 Largest 2 | . 2 2 2 1 1 1 1 1 . 1 1 1 1 . 1 1 1 1 1 1 1 1 1 1 1 1 1 1 1 1 1 1 1 Hottest 160 | . 100 50 160 80 68 85 85 85 . 40 40 85 85 . 73 60 60 60 60 60 60 7 105 105 7 7 113 94 50 50 150 50 50 Shots Fired 795 | . 121 23 45 40 42 22 10 2 . 22 10 12 11 . 71 7 5 19 28 23 30 2 4 1 12 2 2 25 14 85 45 28 32 Gun 231 | . 109 14 2 . . . . . . . . . . . 13 7 5 19 28 9 15 . . . . . . 10 . . . . . Cannon 447 | . 5 9 40 30 31 22 7 2 . 21 10 12 11 . 54 . . . . . 5 . 3 1 . . 2 7 14 60 42 28 31 Launcher 29 | . . . 3 10 11 . 3 . . 1 . . . . . . . . . . . . . . . . . . . . . . 1 Special 88 | . 7 . . . . . . . . . . . . . 4 . . . . 14 10 2 1 . 12 2 . 8 . 25 3 . . Kinetic 125 | . 62 23 2 . 7 . . . . 21 10 . . . . . . . . . . . . . . . . . . . . . . Thermal 455 | . 59 . 40 30 24 22 7 2 . . . 12 11 . 9 . . . . 14 15 . 3 1 . . 2 19 14 70 42 28 31 Explosive 36 | . . . 3 10 11 . 3 . . 1 . . . . 4 . . . . . . . . . . 1 . 2 . . . . 1 Electromagnetic 58 | . . . . . . . . . . . . . . . 54 . . . . . . . . . . . . 4 . . . . . Phasic 87 | . . . . . . . . . . . . . . . 4 7 5 19 28 9 15 . . . . . . . . . . . . Robot Hit Streak 32 | . 11 9 9 7 3 3 5 7 . 13 3 4 2 . 32 7 1 3 2 14 11 13 15 . 12 14 . 22 8 15 10 4 3 Robot Miss Streak 5 | . 3 2 2 3 2 4 3 . . 2 3 1 2 . 4 3 . 3 2 1 5 . 1 1 . . . 4 1 2 1 2 2 Penetration Max . | . . . . . . . . . . . . . . . . . . . . . . . . . . . . . . . . . . Secondary Targets 1 | . 1 . . . . . . . . . . . . . . . . . . . . . . . . . . . . . . . . Max Gunslinging Chain 1 | . 1 . . . . . . . . . . . . . . . . . . . . . . . . . . . . . . . . Shots Hit Robots 573 | . 83 15 21 28 17 15 7 2 1 14 5 6 14 . 51 1 1 8 5 29 28 11 10 10 12 5 1 46 6 71 21 14 15 Core Hits 303 | 4 34 6 11 36 25 9 5 1 . 6 2 1 5 . 48 1 . 2 2 10 8 3 3 5 . 5 . 21 4 22 8 7 9 Critical Kills 4 | . . . 2 . . . . . . . . . . . . . . . . . . . . . . . . . . . 2 . . Critical Parts Destroyed . | . . . . . . . . . . . . . . . . . . . . . . . . . . . . . . . . . . Critical Strikes 25 | . 4 1 2 . . . . . . 3 1 . 1 . . . . . . 1 . 1 1 . . 1 . 7 . . 2 . . Burn 4 | . 4 . . . . . . . . . . . . . . . . . . . . . . . . . . . . . . . . Meltdown 4 | . . . 2 . . . . . . . . . . . . . . . . . . . . . . . . . . . 2 . . Blast 5 | . . 1 . . . . . . . 3 1 . . . . . . . . . . . . . . . . . . . . . . Sever 2 | . . . . . . . . . . . . . 1 . . . . . . . . . . . . . . 1 . . . . . Impale 9 | . . . . . . . . . . . . . . . . . . . . . . 1 1 . . 1 . 6 . . . . . Intensify 1 | . . . . . . . . . . . . . . . . . . . . 1 . . . . . . . . . . . . . Melee Attacks 209 | . . . 1 4 40 5 2 . 1 . 12 2 11 1 2 . . 3 . 9 9 9 9 11 . 14 1 46 . 17 . . . Impact . | . . . . . . . . . . . . . . . . . . . . . . . . . . . . . . . . . . Slashing 68 | . . . . . 40 2 1 . . . 11 2 11 1 . . . . . . . . . . . . . . . . . . . Piercing 128 | . . . 1 4 . . . . . . . . . . 1 . . 3 . 5 7 9 9 11 . 14 1 46 . 17 . . . Sneak Attacks 69 | . . . 1 1 . 4 2 . 1 . 1 . 4 . 1 . . 1 . 3 6 7 1 4 . . 1 17 . 14 . . . Combat Hostiles . | . . . . . . . . . . . . . . . . . . . . . . . . . . . . . . . . . . Follow-up Attacks . | . . . . . . . . . . . . . . . . . . . . . . . . . . . . . . . . . . Damage Inflicted 26221 | 42 1154 237 681 1959 1392 991 300 61 . 514 163 302 933 . 3915 66 . 639 198 645 985 545 531 640 . 393 66 2812 303 2457 831 734 1732 Guns 2657 | . 1076 121 . . . . . . . . . . . . 100 66 . 297 198 198 396 . . . . . . 205 . . . . . Cannons 8285 | . 70 100 535 621 238 330 150 61 . 456 163 134 145 . 830 . . . . . 229 . 103 . . . . 99 303 1463 831 734 690 Explosions 7373 | . . . 90 1247 779 565 90 . . 58 . . . . 2785 . . 274 . . . . . . . 255 . 273 . . . . 957 Melee 7272 | . . . 56 91 375 96 60 . . . . 168 788 . 64 . . 68 . 338 324 545 428 640 . 107 66 2130 . 928 . . . Ramming 151 | 42 8 16 . . . . . . . . . . . . . . . . . . . . . . . . . . . . . . 85 Kinetic 1583 | . 625 221 37 . 81 . . . . 456 163 . . . . . . . . . . . . . . . . . . . . . . Thermal 8426 | . 521 . 498 621 157 895 150 61 . . . 134 145 . 67 . . 274 . 109 265 . 103 . . . . 339 303 1529 831 734 690 Explosive 6534 | . . . 90 1247 779 . 90 . . 58 . . . . 2785 . . . . . . . . . . 255 . 273 . . . . 957 Electromagnetic 830 | . . . . . . . . . . . . . . . 830 . . . . . . . . . . . . . . . . . . Impact . | . . . . . . . . . . . . . . . . . . . . . . . . . . . . . . . . . . Slashing 1724 | . . . . . 375 96 60 . . . . 168 788 . 136 . . . . . . . . . . 31 . 70 . . . . . Piercing 5785 | . . . 56 91 . . . . . . . . . . 64 . . 68 . 338 324 545 428 640 . 107 66 2130 . 928 . . . Phasic 1188 | . . . . . . . . . . . . . . . 33 66 . 297 198 198 396 . . . . . . . . . . . . Highest Corruption 4 | . . . . . . . . . . . . . . . . . . . . . 4 . . . . . . 1 . 2 1 . . Average Corruption 1 | . . . . . . . . . . . . . . . . . . . . . 4 . . . . . . 1 . 1 1 . . Corruption Purged . | . . . . . . . . . . . . . . . . . . . . . . . . . . . . . . . . . . Corruption Blocked . | . . . . . . . . . . . . . . . . . . . . . . . . . . . . . . . . . . Effects 30 | . . . . . . . . . . . . . . . . . . . . . . . . . . . . 12 . 10 8 . . Message Errors 9 | . . . . . . . . . . . . . . . . . . . . . . . . . . . . 2 . 4 3 . . Matter Fused 4 | . . . . . . . . . . . . . . . . . . . . . . . . . . . . 2 . 1 1 . . Heat Flow Errors 6 | . . . . . . . . . . . . . . . . . . . . . . . . . . . . 4 . 1 1 . . Energy Discharges 2 | . . . . . . . . . . . . . . . . . . . . . . . . . . . . 1 . 1 . . . Parts Fused 1 | . . . . . . . . . . . . . . . . . . . . . . . . . . . . . . . 1 . . Data Loss (minor) 5 | . . . . . . . . . . . . . . . . . . . . . . . . . . . . 1 . 3 1 . . Data Loss (major) 1 | . . . . . . . . . . . . . . . . . . . . . . . . . . . . 1 . . . . . Alerts 2 | . . . . . . . . . . . . . . . . . . . . . . . . . . . . 1 . . 1 . . Overload Shots 1 | . . . . . . . . . . . . . . . . . . . . . . . . . . . . . . . 1 . . Overflow Damage 2132 | . . . 22 47 59 10 14 . . . . 176 224 . 185 . . 99 . 111 44 175 211 122 . . 36 454 . 80 . 16 47 Projectiles 257 | . . . 6 19 3 2 14 . . . . 52 . . 45 . . . . . 44 . . . . . . . . 54 . 16 2 Explosions 334 | . . . . 28 56 8 . . . . . . . . 140 . . 99 . . . . . . . . . 3 . . . . . Melee 1541 | . . . 16 . . . . . . . . 124 224 . . . . . . 111 . 175 211 122 . . 36 451 . 26 . . 45 Knockbacks 9 | . 2 1 1 . . . . . . 3 1 . . . . . . . . . . . . . . . . . . . . . 1 Impact 2 | . 1 . . . . . . . . . . . . . . . . . . . . . . . . . . . . . . . 1 Kinetic 7 | . 1 1 1 . . . . . . 3 1 . . . . . . . . . . . . . . . . . . . . . . Secondary . | . . . . . . . . . . . . . . . . . . . . . . . . . . . . . . . . . . Self-Inflicted Damage 195 | . . . 64 27 33 . . . . . . . . . . . . 71 . . . . . . . . . . . . . . . Shots 6 | . . . 2 2 1 . . . . . . . . . . . . 1 . . . . . . . . . . . . . . . Rammed 32 | 23 1 8 . . . . . . . . . . . . . . . . . . . . . . . . . . . . . . . Targets Rammed 37 | 24 4 8 . . . . . . . . . . . . . . . . . . . . . . . . . . . . . . 1 Kicked 1 | . . . . . . . . . . . . . . . . . . . . . . . . . . . . . . . . . 1 Crushed 4 | 1 3 . . . . . . . . . . . . . . . . . . . . . . . . . . . . . . . . Highest Temperature 293 | . 83 43 141 233 50 293 152 38 . . . 108 173 . 288 . . . 13 . 107 . 275 16 . . 88 260 39 244 215 36 24 Average Temperature 58 | . 35 22 40 70 15 136 53 22 . . . 34 57 . 86 . . . 7 . 50 . 101 13 . . 51 75 18 62 38 16 16 Received Heat Transfer 1839 | . 393 120 99 180 54 219 18 . . 14 4 22 13 . 140 4 . 12 18 . 39 30 346 25 . 8 . 43 4 12 . 10 12 Effects 4 | . . . . . . 2 . . . . . . . . . . . . . . . . . . . . . 1 . 1 . . . Energy Bleed 2 | . . . . . . . . . . . . . . . . . . . . . . . . . . . . 1 . 1 . . . Interference 2 | . . . . . . 2 . . . . . . . . . . . . . . . . . . . . . . . . . . . Siege Activations . | . . . . . . . . . . . . . . . . . . . . . . . . . . . . . . . . . . Martial Activations . | . . . . . . . . . . . . . . . . . . . . . . . . . . . . . . . . . . Shielding Activations . | . . . . . . . . . . . . . . . . . . . . . . . . . . . . . . . . . . Robots Disrupted . | . . . . . . . . . . . . . . . . . . . . . . . . . . . . . . . . . . Combat Hostiles . | . . . . . . . . . . . . . . . . . . . . . . . . . . . . . . . . . . Robots Corrupted 6 | . . . . . . . . . . . . . . . 5 . . . . . . . . . . . . . . . . . 1 Combat Hostiles 4 | . . . . . . . . . . . . . . . 4 . . . . . . . . . . . . . . . . . . Parts Fried 4 | . . . . . . . . . . . . . . . 3 . . . . . . . . . . . . . . . . . 1 Impact Corruptions 2 | . . . . . . . . . . . . . . . . . . . . . . . . . . . . . . . . . 2 Robots Melted 4 | . . . 2 . . . . . . . . . . . . . . . . . . . . . . . . . . . 2 . . Combat Hostiles 4 | . . . 2 . . . . . . . . . . . . . . . . . . . . . . . . . . . 2 . . Parts Melted 27 | . 6 . 3 . 1 1 . . . . . . . . . . . . . . . . 1 . . . . . 3 1 7 4 . Heat Transferred 10000 | . 1776 . 666 851 259 971 185 55 . . . 148 185 . 74 . . 280 . 350 300 . 111 . . . . 371 240 1367 665 592 554 Parts Sabotaged 3 | . . . . . . . . . . . . . . . . . . . . . . . . . . . . . . . . . 3 Parts Stolen . | . . . . . . . . . . . . . . . . . . . . . . . . . . . . . . . . . . Parts Stripped . | . . . . . . . . . . . . . . . . . . . . . . . . . . . . . . . . . . Power Chain Reactions . | . . . . . . . . . . . . . . . . . . . . . . . . . . . . . . . . . . Alert | -11 -10 -10 -10 -8 -8 -7 -7 -7 -7 -6 -6 -6 -6 -6 -6 -5 -5 -5 -5 -5 -4 -4 -4 -4 -4 -3 -3 -3 -2 -2 -2 -1 -1 ------- Run | Yrd Mat Min Sub Mat Gar Fac Low Low Dat Pro Fac Low Low Zio Dee Pro Fac Upp Upp Zhi Pro Fac Upp Upp War Pro Res Tes Res Qua Sec Acc Com Maximum Alert Level 5 | . . . . 3 5 4 . . . . 2 . . . . . . . . . . 1 . . . . 2 4 3 4 4 5 5 Low Security (%) 26 | 100 100 100 . 20 . . . . . . . . . . . . 100 . . . . 74 . . . . . . . . . . . Level 1 7 | . . . . 16 . . . . . . 14 . . . . . . . . . . 25 . . . . 13 39 . . . . . Level 2 14 | . . . . 34 11 . . . . . 85 . . . . . . . . . . . . . . . 86 20 16 8 15 . . Level 3 32 | . . . . 29 26 88 . . . . . . . . . . . . . . . . . . . . . 36 83 70 20 41 . Level 4 15 | . . . . . 52 11 . . . . . . . . . . . . . . . . . . . . . 3 . 21 63 17 63 Level 5 2 | . . . . . 9 . . . . . . . . . . . . . . . . . . . . . . . . . . 41 19 High Security . | . . . . . . . . . . . . . . . . . . . . . . . . . . . . . . . . . 17 Max Security . | . . . . . . . . . . . . . . . . . . . . . . . . . . . . . . . . . . Peak Influence 2225 | 5 116 37 . 800 1743 1258 . . . . 687 . . . . . 74 . . . . 259 . . . . 530 1137 955 1200 1521 1950 2225 Initial 1225 | . . . . 1 466 914 . . . . 432 . . . . . . . . . . 185 . . . . 526 236 634 510 671 912 1225 Average 663 | . 40 3 . 434 1190 992 . . . . 536 . . . . . 24 . . . . 182 . . . . 454 566 797 1006 1094 1399 1506 Influence Increases 21589 | 5 530 100 96 1309 1317 955 162 310 . 838 840 540 265 . . 490 213 810 520 10 307 524 419 261 1490 1341 74 1541 664 1812 1290 1238 1318 Destroy 0b10 Robot/C 10220 | . 300 40 80 800 600 440 100 180 . 500 220 320 140 . . 280 60 440 320 . 180 200 240 120 780 660 20 660 260 660 560 480 580 Destroy 0b10 Robot/NC 375 | 5 30 5 . 25 10 15 5 . . 10 20 5 15 . . . 5 . . 10 10 30 5 10 15 . . 65 . 5 20 15 40 Destroy Leader 1508 | . 82 10 10 180 30 102 30 30 . 60 50 50 20 . . 30 10 40 30 . 30 60 30 20 . 60 10 80 20 170 74 84 106 Allied During Kill 6196 | . . . 6 128 107 82 27 100 . 253 107 165 90 . . 180 52 315 170 . 87 62 144 96 695 606 24 469 204 728 432 446 421 Trap Triggered on 0b10 10 | . . . . . . 10 . . . . . . . . . . . . . . . . . . . . . . . . . . . Successful Hack 381 | . 50 . . 49 35 . . . . . 35 . . . . . 35 . . . . 7 . . . . 14 36 . 39 . 36 45 Select Force Hacks 20 | . . . . . . . . . . . 20 . . . . . . . . . . . . . . . . . . . . . . Disable Machine 735 | . . . . 30 30 210 . . . . 30 . . . . . 15 . . . . 15 . . . . . 165 15 105 75 30 15 Anti-Garrison Action 550 | . . . . . 400 . . . . . . . . . . . . . . . . . . . . . . . 150 . . . . Destroy Structure 889 | . 8 . . 82 90 51 . . . . 58 . . . . . 36 . . . . . . . . . 6 66 15 105 129 132 111 Advance Influence 450 | . . . . . . . . . . . 300 . . . . . . . . . . 150 . . . . . . . . . . . Lose Combat Pursuer 255 | . 60 45 . 15 15 45 . . . 15 . . . . . . . 15 . . . . . 15 . 15 . . . . . 15 . Influence Decreases 19484 | 5 530 77 115 595 292 1431 1142 564 33 628 396 837 579 43 . 490 198 539 680 136 251 389 610 261 196 1855 434 833 884 1526 963 843 1129 Entered New Map 6815 | . . . 13 3 252 829 470 55 33 . 78 243 69 43 . . . 6 55 126 . 21 72 . . 1294 254 184 494 398 523 609 691 Time Decay 11035 | 5 508 77 82 492 . 422 652 489 . 568 318 574 510 . . 470 198 493 593 10 221 278 518 261 106 561 180 589 350 678 380 214 238 Lost Part 82 | . 22 . 20 . . 20 . . . . . . . . . . . . . . 10 10 . . . . . . . . . . . Lost Ally 1402 | . . . . 100 40 160 20 20 . 60 . 20 . . . 20 . 40 32 . 20 80 20 . 90 . . 60 40 300 60 20 200 Purge Threat 150 | . . . . . . . . . . . . . . . . . . . . . . . . . . . . . . 150 . . . Squads Dispatched 75 | . 5 . . 6 . 7 . . . 1 3 . . . . . 2 . . . . 3 . . . 1 1 8 1 11 11 5 10 Investigation 10 | . 2 . . 1 . . . . . 1 2 . . . . . . . . . . 1 . . . 1 . . . . . . 2 Extermination 18 | . . . . . . 1 . . . . 1 . . . . . 1 . . . . 1 . . . . 1 5 . 2 3 1 2 Reinforcement 22 | . 3 . . 2 . 1 . . . . . . . . . . 1 . . . . . . . . . . 2 1 7 3 2 . Assault 10 | . . . . . . 2 . . . . . . . . . . . . . . . . . . . . . 1 . . 1 . 6 Garrison 15 | . . . . 3 . 3 . . . . . . . . . . . . . . . 1 . . . . . . . 2 4 2 . Intercept . | . . . . . . . . . . . . . . . . . . . . . . . . . . . . . . . . . . Searches Triggered . | . . . . . . . . . . . . . . . . . . . . . . . . . . . . . . . . . . Construction Impeded 4 | . . . . 2 . . . . . . . . . . . . 1 . . . . . . . . . . . . . 1 . . Haulers Reinforced 1 | . . . . . . . . . . . . . . . . . . . . . . . . . . . . . . 1 . . . Active Scanning Responses . | . . . . . . . . . . . . . . . . . . . . . . . . . . . . . . . . . . Cargo Convoy Interrupts . | . . . . . . . . . . . . . . . . . . . . . . . . . . . . . . . . . . Stealth | -11 -10 -10 -10 -8 -8 -7 -7 -7 -7 -6 -6 -6 -6 -6 -6 -5 -5 -5 -5 -5 -4 -4 -4 -4 -4 -3 -3 -3 -2 -2 -2 -1 -1 --------- Run | Yrd Mat Min Sub Mat Gar Fac Low Low Dat Pro Fac Low Low Zio Dee Pro Fac Upp Upp Zhi Pro Fac Upp Upp War Pro Res Tes Res Qua Sec Acc Com Distress Signals 23 | . 5 . . 3 . . . . . . . . . . . . . . . . . 2 . . 2 . . . 8 . 1 2 . Communications Jammed 65 | . . . . . . . . . . . 1 . . . . . 4 . . . 2 . . . . . . 23 . 1 . 32 2 Distress Signals 57 | . . . . . . . . . . . 1 . . . . . . . . . . . . . . . . 23 . 1 . 30 2 Times Spotted 634 | . 26 5 15 40 32 21 8 9 . 27 8 14 7 . 56 7 4 19 16 . 12 18 12 5 59 32 1 36 13 36 15 35 46 Peak Tracking Total 37 | . 4 2 3 7 6 5 3 4 . 5 3 4 3 . 37 2 3 4 5 . 4 6 5 3 16 5 1 4 8 7 2 8 11 Tactical Retreats 16 | . 3 3 . 1 1 2 . . . 1 . . . . 1 . . 1 . . . . . 1 . 1 . . . . . 1 . Traps | -11 -10 -10 -10 -8 -8 -7 -7 -7 -7 -6 -6 -6 -6 -6 -6 -5 -5 -5 -5 -5 -4 -4 -4 -4 -4 -3 -3 -3 -2 -2 -2 -1 -1 ------- Run | Yrd Mat Min Sub Mat Gar Fac Low Low Dat Pro Fac Low Low Zio Dee Pro Fac Upp Upp Zhi Pro Fac Upp Upp War Pro Res Tes Res Qua Sec Acc Com Traps Triggered 11 | . 2 . . . 6 . . . . . . . . . . . 1 . . . . . . . . . . 1 . . . . 1 Indirectly . | . . . . . . . . . . . . . . . . . . . . . . . . . . . . . . . . . . Trap Hack Attempts 18 | . . . . . . 18 . . . . . . . . . . . . . . . . . . . . . . . . . . . Triggered 1 | . . . . . . 1 . . . . . . . . . . . . . . . . . . . . . . . . . . . Disarmed 1 | . . . . . . 1 . . . . . . . . . . . . . . . . . . . . . . . . . . . Reprogrammed 4 | . . . . . . 4 . . . . . . . . . . . . . . . . . . . . . . . . . . . Reused 1 | . . . . . . 1 . . . . . . . . . . . . . . . . . . . . . . . . . . . Traps Extracted . | . . . . . . . . . . . . . . . . . . . . . . . . . . . . . . . . . . Installed . | . . . . . . . . . . . . . . . . . . . . . . . . . . . . . . . . . . Triggered 1 | . . . . . . 1 . . . . . . . . . . . . . . . . . . . . . . . . . . . Machines | -11 -10 -10 -10 -8 -8 -7 -7 -7 -7 -6 -6 -6 -6 -6 -6 -5 -5 -5 -5 -5 -4 -4 -4 -4 -4 -3 -3 -3 -2 -2 -2 -1 -1 ---------- Run | Yrd Mat Min Sub Mat Gar Fac Low Low Dat Pro Fac Low Low Zio Dee Pro Fac Upp Upp Zhi Pro Fac Upp Upp War Pro Res Tes Res Qua Sec Acc Com Machines Disabled 79 | . . . 1 2 9 14 . . . 1 2 3 . . 2 . 1 4 1 1 . 1 3 . . 1 . 11 2 9 7 2 2 Max in Single Turn 13 | . . . 1 1 1 13 . . . . 1 1 . . . . 1 2 1 1 . . 1 . . . . 1 1 1 1 1 1 Garrison Access 4 | . . . . . . . . . . . . . . . . . . . . . . 1 . . . . . . 2 1 . . . Garrison Relay 6 | . . . . . 6 . . . . . . . . . . . . . . . . . . . . . . . . . . . . Machines Repaired 1 | . . . . . . . . . . . 1 . . . . . . . . . . . . . . . . . . . . . . Machines Dismantled . | . . . . . . . . . . . . . . . . . . . . . . . . . . . . . . . . . . Machines Sabotaged . | . . . . . . . . . . . . . . . . . . . . . . . . . . . . . . . . . . Overloaded Fab Kills . | . . . . . . . . . . . . . . . . . . . . . . . . . . . . . . . . . . Hacking | -11 -10 -10 -10 -8 -8 -7 -7 -7 -7 -6 -6 -6 -6 -6 -6 -5 -5 -5 -5 -5 -4 -4 -4 -4 -4 -3 -3 -3 -2 -2 -2 -1 -1 --------- Run | Yrd Mat Min Sub Mat Gar Fac Low Low Dat Pro Fac Low Low Zio Dee Pro Fac Upp Upp Zhi Pro Fac Upp Upp War Pro Res Tes Res Qua Sec Acc Com Machines Accessed 107 | . 7 1 3 10 4 1 2 . 4 1 8 . 1 1 . . 6 . . 4 . 3 2 2 5 1 4 9 1 12 7 2 6 Terminals 57 | . 6 . . 8 4 . 1 . . 1 5 . . . . . 3 . . . . . 1 . . 1 3 4 . 9 6 . 5 Fabricators 6 | . . . . . . 1 . . . . 2 . . . . . . . . . . 1 . . . . 1 1 . . . . . Repair Stations 3 | . 1 . . . . . . . . . . . . . . . . . . . . . . . . . . 1 . . . . 1 Recycling Units 3 | . . . . . . . . . . . 1 . . . . . 1 . . . . 1 . . . . . . . . . . . Scanalyzers 7 | . . . . 1 . . . . . . . . . . . . 1 . . . . . . . . . . 2 . 2 . 1 . Garrison Access 8 | . . . . 1 . . . . . . . . . . . . 1 . . . . 1 . . . . . 1 1 1 1 1 . Total Hacks 266 | . 23 1 5 28 7 2 2 . 32 4 17 . 2 1 . . 14 . . 17 . 8 5 8 14 7 7 13 1 19 11 4 14 Successful 172 | . 16 1 5 13 4 . 2 . 32 4 8 . 2 1 . . 6 . . 17 . 4 5 8 14 7 2 3 . 7 3 2 6 Failed 93 | . 7 . . 14 3 2 . . . . 9 . . . . . 8 . . . . 4 . . . . 5 10 1 12 8 2 8 Catastrophic 17 | . . . . 1 1 . . . . . 3 . . . . . 3 . . . . 1 . . . . 1 . 1 2 2 1 1 Database Lockouts 1 | . . . . 1 . . . . . . . . . . . . . . . . . . . . . . . . . . . . . Manual 86 | . 18 . . 16 5 . . . . . 13 . . . . . 11 . . . . . . . 1 . 3 4 1 7 4 . 3 Terminals 129 | . 19 . . 24 7 . 1 . . 4 11 . . . . . 7 . . . . . 4 . . 7 3 7 . 14 9 . 12 Fabricators 16 | . . . . . . 2 . . . . 4 . . . . . . . . . . 5 . . . . 4 1 . . . . . Repair Stations 7 | . 4 . . . . . . . . . . . . . . . . . . . . . . . . . . 1 . . . . 2 Recycling Units 8 | . . . . . . . . . . . 2 . . . . . 4 . . . . 2 . . . . . . . . . . . Scanalyzers 13 | . . . . 2 . . . . . . . . . . . . 2 . . . . . . . . . . 3 . 4 . 2 . Garrison Access 11 | . . . . 2 . . . . . . . . . . . . 1 . . . . 1 . . . . . 1 1 1 2 2 . Terminal Hacks 117 | . 4 1 5 2 3 . 2 . 32 4 2 . 2 1 . . . . . 17 . . 5 8 14 7 . 1 . 3 2 . 2 Record 60 | . . . 3 . . . 1 . 11 4 . . 2 . . . . . . 5 . . 5 7 14 7 . . . 1 . . . Part Schematic 20 | . 2 . . . 1 . . . 12 . . . . 1 . . . . . 4 . . . . . . . . . . . . . Robot Schematic 6 | . . . . . . . . . 6 . . . . . . . . . . . . . . . . . . . . . . . . Robot Analysis 6 | . 2 . . . . . . . . . . . . . . . . . . 4 . . . . . . . . . . . . . Prototype ID Bank 8 | . . . . 1 . . . . 3 . . . . . . . . . . 4 . . . . . . . . . . . . . Open Door 7 | . . 1 1 . 1 . 1 . . . . . . . . . . . . . . . . 1 . . . . . 1 1 . . Machine Index 1 | . . . . . . . . . . . . . . . . . . . . . . . . . . . . . . . . . 1 Fabricator Index 1 | . . . . . . . . . . . 1 . . . . . . . . . . . . . . . . . . . . . . Alert Level 2 | . . . . . . . . . . . . . . . . . . . . . . . . . . . . . . . 1 . 1 Unreport Threat 1 | . . . . . . . . . . . . . . . . . . . . . . . . . . . . . . 1 . . . Locate Traps 2 | . . . . 1 . . . . . . 1 . . . . . . . . . . . . . . . . . . . . . . Recall Reinforcements 1 | . . . . . . . . . . . . . . . . . . . . . . . . . . . . 1 . . . . . Garrison Registry 1 | . . . . . 1 . . . . . . . . . . . . . . . . . . . . . . . . . . . . Proto ID Catalog 1 | . . . 1 . . . . . . . . . . . . . . . . . . . . . . . . . . . . . . Fabricator Hacks 4 | . . . . . . . . . . . 1 . . . . . . . . . . 2 . . . . 1 . . . . . . Load Schematic 3 | . . . . . . . . . . . 1 . . . . . . . . . . 1 . . . . 1 . . . . . . Build 1 | . . . . . . . . . . . . . . . . . . . . . . 1 . . . . . . . . . . . Repair Station Hacks 5 | . 3 . . . . . . . . . . . . . . . . . . . . . . . . . . . . . . . 2 Scan Component 3 | . 2 . . . . . . . . . . . . . . . . . . . . . . . . . . . . . . . 1 Repair 2 | . 1 . . . . . . . . . . . . . . . . . . . . . . . . . . . . . . . 1 Recycling Unit Hacks 1 | . . . . . . . . . . . . . . . . . . . . . . 1 . . . . . . . . . . . Retrieve Matter 1 | . . . . . . . . . . . . . . . . . . . . . . 1 . . . . . . . . . . . Scanalyzer 7 | . . . . 2 . . . . . . . . . . . . 1 . . . . . . . . . . 1 . 1 . 2 . Retrieve Study 7 | . . . . 2 . . . . . . . . . . . . 1 . . . . . . . . . . 1 . 1 . 2 . Garrison Access Hacks 3 | . . . . 1 . . . . . . . . . . . . . . . . . 1 . . . . . . . 1 . . . Unlock Access 1 | . . . . 1 . . . . . . . . . . . . . . . . . . . . . . . . . . . . . Seal Access 2 | . . . . . . . . . . . . . . . . . . . . . . 1 . . . . . . . 1 . . . Unauthorized Hacks 35 | . 9 . . 8 1 . . . . . 5 . . . . . 5 . . . . . . . . . 1 1 . 2 1 . 2 Terminals 28 | . 9 . . 8 1 . . . . . 3 . . . . . 2 . . . . . . . . . . . . 2 1 . 2 Botnet 12 | . 2 . . 2 1 . . . . . 1 . . . . . 1 . . . . . . . . . . . . 2 1 . 2 Operators 4 | . 1 . . 1 . . . . . . 1 . . . . . 1 . . . . . . . . . . . . . . . . Skim 12 | . 6 . . 5 . . . . . . 1 . . . . . . . . . . . . . . . . . . . . . . Fabricators 3 | . . . . . . . . . . . 2 . . . . . . . . . . . . . . . 1 . . . . . . Haulers 1 | . . . . . . . . . . . . . . . . . . . . . . . . . . . 1 . . . . . . Download 1 | . . . . . . . . . . . 1 . . . . . . . . . . . . . . . . . . . . . . Recompile 1 | . . . . . . . . . . . 1 . . . . . . . . . . . . . . . . . . . . . . Repair Stations 1 | . . . . . . . . . . . . . . . . . . . . . . . . . . . . 1 . . . . . Mechanics 1 | . . . . . . . . . . . . . . . . . . . . . . . . . . . . 1 . . . . . Recycling Units 3 | . . . . . . . . . . . . . . . . . 3 . . . . . . . . . . . . . . . . Reject 1 | . . . . . . . . . . . . . . . . . 1 . . . . . . . . . . . . . . . . Recyclers 1 | . . . . . . . . . . . . . . . . . 1 . . . . . . . . . . . . . . . . Mask 1 | . . . . . . . . . . . . . . . . . 1 . . . . . . . . . . . . . . . . Scanalyzers . | . . . . . . . . . . . . . . . . . . . . . . . . . . . . . . . . . . Garrison Access . | . . . . . . . . . . . . . . . . . . . . . . . . . . . . . . . . . . Data Cores Recovered 1 | . . . . . . . . . . . . . . . . . . . . . . . . . . . . 1 . . . . . Used . | . . . . . . . . . . . . . . . . . . . . . . . . . . . . . . . . . . Hacking Detections 67 | . 7 . . 9 3 1 . . . 1 7 . . . . . 6 . . . . 2 1 . . 1 3 7 1 6 5 2 5 Full Trace Events 7 | . . . . 1 . . . . . 1 . . . . . . . . . . . 1 1 . . 1 . . . . . . 2 Feedback Events . | . . . . . . . . . . . . . . . . . . . . . . . . . . . . . . . . . . Feedback Blocked . | . . . . . . . . . . . . . . . . . . . . . . . . . . . . . . . . . . Robot Schematics Acquired 16 | . . . . . . . . . 6 . . . . 4 . . . . . . . . . . . . . 3 . 3 . . . Robots Built . | . . . . . . . . . . . . . . . . . . . . . . . . . . . . . . . . . . Authchips . | . . . . . . . . . . . . . . . . . . . . . . . . . . . . . . . . . . Time 204 | . . . . . . . . . . . . . . . . . . . . . . 204 . . . . . . . . . . . Total Robot Build Rating . | . . . . . . . . . . . . . . . . . . . . . . . . . . . . . . . . . . Part Schematics Acquired 56 | . 2 . . . 1 . . . 12 . 1 . . 14 . . . . . 4 . . . . . . . 13 . 7 2 . . Parts Built . | . . . . . . . . . . . . . . . . . . . . . . . . . . . . . . . . . . Authchips . | . . . . . . . . . . . . . . . . . . . . . . . . . . . . . . . . . . Time . | . . . . . . . . . . . . . . . . . . . . . . . . . . . . . . . . . . Total Part Build Rating . | . . . . . . . . . . . . . . . . . . . . . . . . . . . . . . . . . . Part Studies Acquired 7 | . . . . 2 . . . . . . . . . . . . 1 . . . . . . . . . . 1 . 1 . 2 . Parts Repaired 2 | . 1 . . . . . . . . . . . . . . . . . . . . . . . . . . . . . . . 1 Time 62 | . 36 . . . . . . . . . . . . . . . . . . . . . . . . . . . . . . . 26 Parts Recycled . | . . . . . . . . . . . . . . . . . . . . . . . . . . . . . . . . . . Recycled Matter . | . . . . . . . . . . . . . . . . . . . . . . . . . . . . . . . . . . Retrieved Matter . | . . . . . . . . . . . . . . . . . . . . . . . . . . . . . . . . . . Retrieved Components . | . . . . . . . . . . . . . . . . . . . . . . . . . . . . . . . . . . Parts Scanalyzed . | . . . . . . . . . . . . . . . . . . . . . . . . . . . . . . . . . . Part Schematics Acquired . | . . . . . . . . . . . . . . . . . . . . . . . . . . . . . . . . . . Parts Damaged . | . . . . . . . . . . . . . . . . . . . . . . . . . . . . . . . . . . Bothacking | -11 -10 -10 -10 -8 -8 -7 -7 -7 -7 -6 -6 -6 -6 -6 -6 -5 -5 -5 -5 -5 -4 -4 -4 -4 -4 -3 -3 -3 -2 -2 -2 -1 -1 ------------ Run | Yrd Mat Min Sub Mat Gar Fac Low Low Dat Pro Fac Low Low Zio Dee Pro Fac Upp Upp Zhi Pro Fac Upp Upp War Pro Res Tes Res Qua Sec Acc Com Used RIF Installer . | . . . . . . . . . . . . . . . . . . . . . . . . . . . . . . . . . . Robots Hacked 31 | . . . . . . 1 1 . 1 . 1 . . . 1 . . . . 3 2 2 1 . 3 1 . . . 12 2 . . Non-combat 4 | . . . . . . 1 . . . . 1 . . . 1 . . . . . . 1 . . . . . . . . . . . Combat 27 | . . . . . . . 1 . 1 . . . . . . . . . . 3 2 1 1 . 3 1 . . . 12 2 . . Robot Hacks Applied 33 | . . . . . . 1 1 . 1 . 1 . . . 1 . . . . 3 2 2 1 . 3 1 . . . 14 2 . . parse_system 30 | . . . . . . . 1 . 1 . . . . . 1 . . . . 3 2 1 1 . 3 1 . . . 14 2 . . find_chute 3 | . . . . . . 1 . . . . 1 . . . . . . . . . . 1 . . . . . . . . . . . Relay Couplers Released 31 | . . . . . 27 . . . . . . . . . . . . . . . . . . . . . . . 4 . . . . Machine Destruction 28 | . . . . . 24 . . . . . . . . . . . . . . . . . . . . . . . 4 . . . . Programmers 3 | . . . . . 3 . . . . . . . . . . . . . . . . . . . . . . . . . . . . Fabnet Peak Effective % . | . . . . . . . . . . . . . . . . . . . . . . . . . . . . . . . . . . Robots Rewired 9 | . . . . . . . . . . . . . . . . 2 . . 2 . . . . . 5 . . . . . . . . Allies Hacked 24 | . . . . . . 1 . . . . . . . . . . . . 1 . 2 1 . . 1 1 . 5 3 2 3 . 4 Hacks Repelled 3 | . . . . . . . . . . . . . . . . . . . . . . . . . . . . . 1 1 . 1 . Allies | -11 -10 -10 -10 -8 -8 -7 -7 -7 -7 -6 -6 -6 -6 -6 -6 -5 -5 -5 -5 -5 -4 -4 -4 -4 -4 -3 -3 -3 -2 -2 -2 -1 -1 -------- Run | Yrd Mat Min Sub Mat Gar Fac Low Low Dat Pro Fac Low Low Zio Dee Pro Fac Upp Upp Zhi Pro Fac Upp Upp War Pro Res Tes Res Qua Sec Acc Com Total Allies 47 | . . . . . 1 . . . . . . . . 6 . 2 . . 2 . . . . . 5 . . . . 31 . . . Largest Group 24 | . . . . . 1 1 . . . . . . . 6 5 1 . . 2 1 . . . . 5 2 . . . 24 1 . . Highest-Rated Group 340 | . . . . . 31 31 . . . . . . . 217 189 30 . . 59 29 . . . . 283 115 . . . 340 13 . . Highest-Rated Ally 64 | . . . . . 31 31 . . . . . . . 51 51 30 . . 30 29 . . . . 64 64 . . . 15 13 . . Initial Warlord ECA Mod 9 | . . . . . . 9 9 9 9 8 8 8 8 8 8 7 7 6 6 6 5 5 4 4 4 3 3 3 2 2 2 1 1 Warlord Squad Rendezvous 2 | . . . . . . . . . . . . . . . . . 1 . . . . 1 . . . . . . . . . . . Infantry 1 | . . . . . . . . . . . . . . . . . 1 . . . . . . . . . . . . . . . . Chimera 1 | . . . . . . . . . . . . . . . . . . . . . . 1 . . . . . . . . . . . Total Orders 223 | . . 1 26 3 2 7 13 10 7 1 1 2 . 12 26 1 2 2 . 12 10 1 . 1 57 1 2 7 8 2 5 . 1 STAY 92 | . . . 8 1 1 3 7 5 5 . . . . 6 10 . . 1 . 6 4 . . 1 32 1 . . . . 1 . . ROAM 3 | . . . 1 . . . . . . . . . . . . . . . . . . . . . . . . . 1 1 . . . FOLLOW 72 | . . . 2 1 1 4 6 5 2 1 . . . 6 10 . 1 1 . 6 6 . . . 13 . . 2 1 1 3 . . AID 24 | . . . . . . . . . . . 1 2 . . 4 1 . . . . . . . . 12 . . . 2 . 1 . 1 DROP 4 | . . . . 1 . . . . . . . . . . . . 1 . . . . . . . . . 1 1 . . . . . PICKUP 1 | . . . . . . . . . . . . . . . . . . . . . . . . . . . . 1 . . . . . COLLECT 2 | . . . . . . . . . . . . . . . . . . . . . . . . . . . . 2 . . . . . EXPLORE 8 | . . . 6 . . . . . . . . . . . . . . . . . . . . . . . . . 2 . . . . RETURN 17 | . . 1 9 . . . . . . . . . . . 2 . . . . . . 1 . . . . 1 1 2 . . . . Ally Attacks 3204 | . . . 74 118 67 114 47 37 . 144 94 130 52 . 259 84 37 136 85 . 106 45 44 36 214 191 3 124 71 410 225 90 167 Total Damage 81051 | . . . 274 2140 1031 1777 676 846 . 3506 1603 2184 862 . 3621 1351 939 2254 1901 . 2564 1712 2459 1183 8657 5615 143 4696 2989 10563 6166 3176 6163 Kills 484 | . . . 4 21 13 20 4 8 . 23 14 15 7 . 32 13 4 20 15 . 10 10 12 6 43 32 1 31 12 35 27 22 30 Allies Corrupted 13 | . . . . . . . . . . . . 1 1 . 1 . . . 1 . . . . . 3 1 . 2 . 2 1 . . Allies Melted 7 | . . . . 1 . 1 . . . 1 . . . . . . . . . . . . . . . . . . 4 . . . . Fabricated Assembled 31 | . . . . . . . . . . . . . . . . . . . . . . . . . . . . . . 31 . . . Borg Created 79 | . . . . 8 4 6 6 2 . 1 2 1 2 1 1 2 . 1 3 1 3 6 4 2 . 3 . 3 1 7 2 1 6 Largest Collective 8 | . . . . 4 5 6 6 8 . 5 6 6 7 7 8 8 . 7 7 7 4 4 6 7 . 7 . 7 6 6 6 6 7 Intel | -11 -10 -10 -10 -8 -8 -7 -7 -7 -7 -6 -6 -6 -6 -6 -6 -5 -5 -5 -5 -5 -4 -4 -4 -4 -4 -3 -3 -3 -2 -2 -2 -1 -1 ------- Run | Yrd Mat Min Sub Mat Gar Fac Low Low Dat Pro Fac Low Low Zio Dee Pro Fac Upp Upp Zhi Pro Fac Upp Upp War Pro Res Tes Res Qua Sec Acc Com Active Infowar (turns) 31124 | . 1365 93 520 1416 . 713 194 1449 152 1150 701 1747 476 . 724 2415 570 2234 1595 496 1375 313 2083 2245 341 935 367 1839 492 1547 745 441 391 IFF 1358 | . . . . . . . . . . . . . . . . . . . . 64 1061 233 . . . . . . . . . . . Seismic 8454 | . 1365 93 520 1416 . 713 194 1449 152 1150 518 884 . . . . . . . . . . . . . . . . . . . . . Jamming 22546 | . . . . . . . . . . . 700 1580 476 . 724 2415 570 2234 1595 432 314 80 2083 2245 341 935 367 1839 492 1547 745 441 391 ECM 1 | . . . . . . . . . . . . . . . . . . . . . . . . . . . . 1 . . . . . Robot Analysis Total 6 | . 2 . . . . . . . . . . . . . . . . . . 4 . . . . . . . . . . . . . Derelict Logs Recovered 21 | . . 2 . . . . 1 2 . 1 . 1 2 . . 2 . 2 2 . 1 . 2 3 . . . . . . . . . Drone Launches 97 | . . 1 84 . . . . . . . . . . . 2 . . . . . . 1 . . . . 3 3 3 . . . . Drone Recoveries 93 | . . 1 83 . . . . . . . . . . . 2 . . . . . . 1 . . . . 3 2 1 . . . . Exploration | -11 -10 -10 -10 -8 -8 -7 -7 -7 -7 -6 -6 -6 -6 -6 -6 -5 -5 -5 -5 -5 -4 -4 -4 -4 -4 -3 -3 -3 -2 -2 -2 -1 -1 ------------- Run | Yrd Mat Min Sub Mat Gar Fac Low Low Dat Pro Fac Low Low Zio Dee Pro Fac Upp Upp Zhi Pro Fac Upp Upp War Pro Res Tes Res Qua Sec Acc Com Turns Passed 57596 | 394 1620 991 2663 1500 1333 1031 2400 1993 217 1907 702 1747 2111 2765 4744 2783 635 2239 2109 1811 3367 618 2139 2987 1200 1929 367 1857 796 2667 895 448 631 Spaces Moved 32099 | 220 523 574 1941 945 751 453 1288 1033 117 1022 373 1026 1269 1694 2428 1072 296 1228 1048 941 1314 310 1449 1852 751 1200 242 1114 481 1686 652 335 471 Core 6 | 6 . . . . . . . . . . . . . . . . . . . . . . . . . . . . . . . . . Treads 1892 | 214 523 574 581 . . . . . . . . . . . . . . . . . . . . . . . . . . . . . . Legs 12555 | . . . . . . . . . . . . . . . 944 1072 18 . . . 40 310 1449 1852 751 1200 242 1114 481 1686 652 335 409 Wheels 17584 | . . . 1360 945 751 453 1288 1033 117 1022 373 1026 1269 1694 1484 . 278 1228 1048 941 1274 . . . . . . . . . . . . Hover . | . . . . . . . . . . . . . . . . . . . . . . . . . . . . . . . . . . Flight . | . . . . . . . . . . . . . . . . . . . . . . . . . . . . . . . . . . Fastest Speed 50 | 50 160 160 80 95 115 155 175 175 175 175 135 135 150 150 150 189 165 165 165 165 165 130 130 130 126 128 125 125 115 107 107 103 103 Average Speed 150 | 157 160 160 125 133 135 176 175 175 175 175 146 149 150 150 170 224 183 165 171 177 170 142 130 139 129 128 125 129 119 115 107 103 103 Slowest Speed 320 | 160 160 160 160 140 140 185 175 175 175 175 150 150 150 150 320 242 242 165 180 180 192 192 130 190 186 182 125 130 130 177 107 106 165 Overloaded Moves . | . . . . . . . . . . . . . . . . . . . . . . . . . . . . . . . . . . Propulsion Burnouts . | . . . . . . . . . . . . . . . . . . . . . . . . . . . . . . . . . . Robots Hopped 2 | . . . . . . . . . . . . . . . . . . 1 . . . . . . . . . . . 1 . . . Potential Cave-ins . | . . . . . . . . . . . . . . . . . . . . . . . . . . . . . . . . . . Cave-ins Triggered . | . . . . . . . . . . . . . . . . . . . . . . . . . . . . . . . . . . Microwarps 7 | . . . . . . . . . . . . . . . . . . . . . . . . . . . . . . . . . 7 Exploration Rate (%) 69 | 11 95 95 71 80 78 14 98 97 77 98 14 98 99 87 92 99 12 99 96 95 96 7 98 99 81 98 10 92 30 88 47 9 18 Regions Visited 33 Branch Regions 23 Pre-discovered Areas 11 | . 1 . 1 1 . . 1 . 1 . . . . 1 . . . . . 3 . . 1 . 1 . . . . . . . . Known Exits Taken 14 | . . 1 . 1 . 1 1 1 . 1 1 . . . . 1 1 . . . 1 1 . 1 . . 1 1 . . . . . Unknown Exits Taken 18 | 1 1 . 1 . . . . . 1 . . 1 1 1 1 . . 1 1 1 . . 1 . 1 1 . . 1 1 1 1 . Scrap Searched 61 | . . 1 9 . . . 8 4 . 1 . 3 4 3 . 1 . 5 5 . 5 . 2 5 . 5 . . . . . . . Spaces Dug 196 | . 6 . 1 25 41 . 15 . . . 9 5 4 . 3 3 3 7 17 . 2 . 1 1 . 9 2 5 3 8 15 6 5 Terrain Destroyed 447 | . 7 . 24 82 57 67 17 . . 5 10 6 6 . 7 5 4 22 21 2 3 . 1 2 . 16 2 24 5 13 15 11 13 Melee 32 | . . . . 1 4 . . . . . 8 . . . . . . 2 . . . . 1 1 . 9 . 3 . 3 . . . Projectile 153 | . 7 . 3 6 . 7 . . . 3 2 6 6 . 7 5 4 8 21 2 3 . . 1 . . 2 6 5 10 15 11 13 AOE 262 | . . . 21 75 53 60 17 . . 2 . . . . . . . 12 . . . . . . . 7 . 15 . . . . . Terrain Rammed . | . . . . . . . . . . . . . . . . . . . . . . . . . . . . . . . . . . Walls Destroyed . | . . . . . . . . . . . . . . . . . . . . . . . . . . . . . . . . . . Machines Disabled . | . . . . . . . . . . . . . . . . . . . . . . . . . . . . . . . . . . Actions | -11 -10 -10 -10 -8 -8 -7 -7 -7 -7 -6 -6 -6 -6 -6 -6 -5 -5 -5 -5 -5 -4 -4 -4 -4 -4 -3 -3 -3 -2 -2 -2 -1 -1 --------- Run | Yrd Mat Min Sub Mat Gar Fac Low Low Dat Pro Fac Low Low Zio Dee Pro Fac Upp Upp Zhi Pro Fac Upp Upp War Pro Res Tes Res Qua Sec Acc Com Total 40117 | 253 1169 619 2116 1115 960 640 1408 1209 127 1109 497 1214 1445 1916 2957 1440 401 1410 1318 1038 2403 448 1669 2231 978 1540 300 1388 702 2317 803 417 560 Wait 5721 | . 541 8 92 60 47 98 77 163 4 51 71 147 134 197 335 339 35 151 174 41 968 91 189 336 181 304 33 124 164 423 55 31 57 Move 32007 | 219 522 573 1940 945 750 452 1287 1032 116 1021 372 1025 1268 1693 2427 1071 295 1225 1047 940 1313 309 1448 1851 750 1199 241 1113 480 1683 651 334 415 Hop 2 | . . . . . . . . . . . . . . . . . . 1 . . . . . . . . . . . 1 . . . Pick Up 273 | 6 14 3 10 18 14 12 8 1 . 2 4 7 7 5 32 . 23 1 1 2 22 3 4 2 8 1 7 7 10 19 8 4 8 Fast Attach 81 | 3 5 2 12 2 1 . . . . . 2 . . 3 4 . 2 . . 3 3 2 1 5 3 . . 7 6 7 4 1 3 Attach 76 | 1 4 . 2 1 . 5 . . . . 2 . 2 2 12 . 7 . . 1 5 3 . . 3 . 3 . 6 12 1 3 1 Detach 31 | . 1 1 1 . . 1 . . . . 2 . . 2 2 . 4 . . . 1 2 . . . . . 3 1 6 . 1 3 Swap 421 | . 6 5 12 21 12 17 9 8 6 9 13 12 5 4 32 8 1 8 6 14 15 14 4 15 10 16 7 39 1 29 27 10 26 Drop 311 | . 8 5 18 13 13 4 8 1 . 1 5 7 5 8 39 1 29 1 1 4 33 6 4 7 11 1 5 17 19 23 6 4 4 Fire 714 | . 64 14 28 42 42 22 10 2 . 22 10 12 11 . 71 7 5 19 28 23 30 2 4 1 12 2 2 25 14 85 45 28 32 Melee 209 | . . . 1 4 40 5 2 . 1 . 12 2 11 1 2 . . 3 . 9 9 9 9 11 . 14 1 46 . 17 . . . Ram . | . . . . . . . . . . . . . . . . . . . . . . . . . . . . . . . . . . Kick 1 | . . . . . . . . . . . . . . . . . . . . . . . . . . . . . . . . . 1 Crush 36 | 24 4 8 . . . . . . . . . . . . . . . . . . . . . . . . . . . . . . . Escape Stasis 36 | . . . . . 36 . . . . . . . . . . . . . . . . . . . . . . . . . . . . Rewire 72 | . . . . 1 . . . . . . . . . . . 12 . . 57 . . . . 1 . . . . . 1 . . . Trap 18 | . . . . . . 18 . . . . . . . . . . . . . . . . . . . . . . . . . . . Miscellaneous 108 | . . . . 8 5 6 7 2 . 3 4 2 2 1 1 2 . 1 4 1 4 7 6 2 . 3 1 7 1 11 6 1 10 Route ------- -11/Scrapyard -10/Materials (discovered 6 exits: [*Mat x3] / *Min x2 / Sub) -10/Mines (discovered 3 exits: [*Mat x2] / *Sub) -10/Subcaves (discovered 3 exits: *Mat x2 / Rec) -8/Materials (discovered 5 exits: *Fac x2 / *Sto x2 / Gar) -8/Garrison (discovered 3 exits: *Fac x3) -7/Factory (discovered 3 exits: Fac x2 / *Low) -7/Lower Caves -7/Lower Caves (discovered 2 exits: *Fac / *Dat) -7/Data Miner -6/Proximity Caves -6/Factory (discovered 2 exits: Fac / *Low) -6/Lower Caves -6/Lower Caves (discovered 2 exits: *Fac / *Zio) -6/Zion (discovered 2 exits: [*Dee] / [*Pro]) -6/Deep Caves -5/Proximity Caves -5/Factory (discovered 2 exits: *Upp x2) -5/Upper Caves -5/Upper Caves (discovered 2 exits: *Fac / *Zhi) -5/Zhirov -4/Proximity Caves -4/Factory (discovered 4 exits: *Res / *Upp / *Ext x2) -4/Upper Caves -4/Upper Caves (discovered 2 exits: *Res / *War) -4/Warlord -3/Proximity Caves -3/Research (discovered 2 exits: Res / *Tes) -3/Testing -2/Research (discovered 2 exits: *Acc / *Qua) -2/Quarantine (discovered 2 exits: *Sec / [*Frg]) -2/Section 7 -1/Access -1/Command To Fleet Rendezvous History --------- Turn | Location | Event 20 | -11/Scrapyard | Discovered new exit (range 16) 395 | -11/Scrapyard | Entered Materials 396 | -10/Materials | Build established: Mutant 625 | -10/Materials | Discovered new exit (range 8) 718 | -10/Materials | Discovered new exit (range 14) 826 | -10/Materials | Discovered new exit (range 7) 883 | -10/Materials | Discovered new exit (range 15) 946 | -10/Materials | Repaired Broken Lgt. Treads 967 | -10/Materials | Core integrity fell below 50% 1255 | -10/Materials | Discovered new exit (range 13) 1604 | -10/Materials | Identified exit to Subcaves 1680 | -10/Materials | Loaded intel: 6 trap records 1801 | -10/Materials | Learned Storage trap positions 1845 | -10/Materials | Learned location of Storage (-8) 1899 | -10/Materials | Learned location of 2 exits from Materials 2015 | -10/Materials | Entered Mines 2021 | -10/Mines | Found the Drone Emporium 2027 | -10/Mines | Found Prototype Device 2027 | -10/Mines | Identified Splice Drone Bay 2070 | -10/Mines | A weapon hastily lodged in a ceiling crevice suddenly fell to the ground 2082 | -10/Mines | Received a Rocket Launcher from a helpful Derelict 2515 | -10/Mines | Discovered new exit (range 5) 2556 | -10/Mines | Learned 2 Materials zone layouts 2634 | -10/Mines | Core integrity fell below 20% 2667 | -10/Mines | Learned 2 Materials zone layouts 2671 | -10/Mines | Discovered new exit (range 8) 2998 | -10/Mines | Discovered exit to Subcaves (range 6) 3006 | -10/Mines | Entered Subcaves 3007 | -10/Subcaves | Approached by a straggling Scientist 3007 | -10/Subcaves | Identified exit to Recycling 3046 | -10/Subcaves | Discovered new exit (range 11) 3063 | -10/Subcaves | Shifting Twisted Machinery released Mak. Shrapnel Gun 3137 | -10/Subcaves | A swath of the cavern ceiling suddenly collapsed 3286 | -10/Subcaves | Ambushed by Subdwellers from Twisted Machinery 3389 | -10/Subcaves | Visited Clippyterm 3677 | -10/Subcaves | Shifting Twisted Machinery released Sub. Beam Cannon 4221 | -10/Subcaves | Shifting Twisted Machinery released Mak. Spear 4231 | -10/Subcaves | Shifting Twisted Machinery released Flamer 4283 | -10/Subcaves | Visited 4L-MR0's lab 4296 | -10/Subcaves | Found Tower Shield 4298 | -10/Subcaves | Attached Tower Shield, gained temporary slots: Power, Propulsion x2, Utility x2, Weapon x2 4397 | -10/Subcaves | Learned location of Zion (-6) 4397 | -10/Subcaves | Met a Zionite searching for "candidates" 4425 | -10/Subcaves | Shifting Twisted Machinery released Sub. Laser 4427 | -10/Subcaves | Shifting Twisted Machinery released Sub. Monowheel 4574 | -10/Subcaves | A swath of the cavern ceiling suddenly collapsed 4596 | -10/Subcaves | Build established: Scavenger-Gunner 5034 | -10/Subcaves | Discovered new exit (range 5) 5187 | -10/Subcaves | Disturbed a concealed Subdweller 5504 | -10/Subcaves | Found Prototype Special Melee Weapon 5607 | -10/Subcaves | Build established: Mutant 5669 | -10/Subcaves | Entered Materials 5669 | -8/Materials | Evolved 4 slots: Weapon x4 5670 | -8/Materials | Identified exit to Storage 5687 | -8/Materials | Identified 1B-0RG's Assimilator 5753 | -8/Materials | Assimilating Defender 3a into Collective. 5786 | -8/Materials | Assimilating Smith 3a into Collective. 5838 | -8/Materials | Assimilating Transporter 3a into Collective. 5844 | -8/Materials | Garrison activated, responded to threat 6102 | -8/Materials | Assimilating Transporter 3b into Collective. 6120 | -8/Materials | Assimilating Trooper 3a into Collective. 6157 | -8/Materials | Assimilating Transporter 3c into Collective. 6238 | -8/Materials | Destroyed 7 combat bots 6316 | -8/Materials | Assimilating Transporter 3d into Collective. 6348 | -8/Materials | Assimilating Transporter 3e into Collective. 6528 | -8/Materials | Discovered new exit (range 24) 6623 | -8/Materials | Learned location of 3 exits from Factory 6652 | -8/Materials | Learned Storage emergency access door positions 6685 | -8/Materials | Learned Factory security intel 6698 | -8/Materials | Learned location of 1 exit from Recycling 6722 | -8/Materials | Learned Factory stockpile data 7036 | -8/Materials | Discovered new exit (range 13) 7043 | -8/Materials | Central database locked down 7169 | -8/Materials | Identified exit to Garrison 7169 | -8/Materials | Entered Garrison 7169 | -8/Garrison | Accompanied by 3 allies 7263 | -8/Garrison | Triggered checkpoint 7316 | -8/Garrison | Triggered checkpoint 7344 | -8/Garrison | Destroyed 11 combat bots 7394 | -8/Garrison | Garrison Relay disabled 7507 | -8/Garrison | Triggered checkpoint 7510 | -8/Garrison | Assimilating Defender 3b into Collective. 7516 | -8/Garrison | Assimilating Defender 3c into Collective. 7553 | -8/Garrison | Triggered checkpoint 7607 | -8/Garrison | Discovered new exit (range 18) 7607 | -8/Garrison | Discovered new exit (range 66) 7607 | -8/Garrison | Discovered new exit (range 49) 7648 | -8/Garrison | Assimilating Defender 3d into Collective. 7749 | -8/Garrison | Garrison Relay disabled 7751 | -8/Garrison | Garrison Relay disabled 7909 | -8/Garrison | Triggered checkpoint 7976 | -8/Garrison | Garrison Relay disabled 8013 | -8/Garrison | Assimilating Defender 3e into Collective. 8018 | -8/Garrison | Rescued a captive Derelict 8195 | -8/Garrison | Garrison Relay disabled 8320 | -8/Garrison | Garrison Relay disabled 8329 | -8/Garrison | Triggered checkpoint 8441 | -8/Garrison | Triggered checkpoint 8502 | -8/Garrison | Entered Factory 8502 | -7/Factory | Accompanied by 6 allies 8502 | -7/Factory | Evolved 2 slots: Utility x2 8503 | -7/Factory | Identified exit to Factory 8503 | -7/Factory | Identified exit to Lower Caves 8571 | -7/Factory | Assimilating 6Y-4DH(g) into Collective. 8861 | -7/Factory | Assimilating Guardian 4a into Collective. 8902 | -7/Factory | First assault squad dispatched 9205 | -7/Factory | Garrison activated, responded to threat 9236 | -7/Factory | Assimilating Gladiator 4a into Collective. 9248 | -7/Factory | Assimilating Angel 4a into Collective. 9262 | -7/Factory | Lost 5 allies 9420 | -7/Factory | Assimilating Trooper 4a into Collective. 9426 | -7/Factory | Assimilating Gladiator 4b into Collective. 9533 | -7/Factory | Entered Lower Caves 9533 | -7/Lower Caves | Accompanied by 1 ally 9540 | -7/Lower Caves | Met a Warlord Commander 9541 | -7/Lower Caves | Learned location of Warlord (-4) 9542 | -7/Lower Caves | Warlord Commander delivered Encrypted Comm Array 9545 | -7/Lower Caves | Found Encrypted Comm Array 9611 | -7/Lower Caves | Assimilating YJ-JGS(k) into Collective. 9626 | -7/Lower Caves | Assimilating M7-L6Z(k) into Collective. 9723 | -7/Lower Caves | Spotted B-75 Beast 9742 | -7/Lower Caves | Assimilating Beast 4a into Collective. 10291 | -7/Lower Caves | Attracted the attention of an 0b10 checkpoint 10297 | -7/Lower Caves | Assimilating Guardian 4b into Collective. 10313 | -7/Lower Caves | Identified exit to Lower Caves 10817 | -7/Lower Caves | Assimilating Commando 4a into Collective. 11593 | -7/Lower Caves | Assimilating TS-PY8(k) into Collective. 11933 | -7/Lower Caves | Entered another Lower Caves area 11933 | -7/Lower Caves | Accompanied by 6 allies 12040 | -7/Lower Caves | Assimilating Sweeper 4a into Collective. 12359 | -7/Lower Caves | Learned Factory terminal intel 12439 | -7/Lower Caves | Encountered a Warlord checkpoint 12482 | -7/Lower Caves | Identified exit to Data Miner 12502 | -7/Lower Caves | Assimilating KG-T8C(M) into Collective. 13151 | -7/Lower Caves | Discovered exit to Factory (range 8) 13926 | -7/Lower Caves | Entered Data Miner 13926 | -7/Data Miner | Accompanied by 7 allies 13926 | -7/Data Miner | Discovered new exit (range 6) 13964 | -7/Data Miner | Met Data Miner 14017 | -7/Data Miner | Learned location of Section 7 (-2) 14017 | -7/Data Miner | Acquired the access code to Warlord's prototype stash 14045 | -7/Data Miner | Received God Mode back door access code from Data Miner 14143 | -7/Data Miner | Entered Proximity Caves 14143 | -6/Proximity Caves | Accompanied by 7 allies 14209 | -6/Proximity Caves | Spotter reported a threat 14248 | -6/Proximity Caves | Spotter reported a threat 14642 | -6/Proximity Caves | Learned 12 Factory zone layouts 15179 | -6/Proximity Caves | Attracted the attention of an 0b10 base 15210 | -6/Proximity Caves | Learned Extension security intel 15210 | -6/Proximity Caves | Learned Armory stockpile data 15210 | -6/Proximity Caves | Learned Extension stockpile data 15295 | -6/Proximity Caves | Spotted B-75 Beast 15316 | -6/Proximity Caves | Assimilating Beast 5a into Collective. 15488 | -6/Proximity Caves | Attracted the attention of an 0b10 checkpoint 15713 | -6/Proximity Caves | Discovered exit to Factory (range 13) 16050 | -6/Proximity Caves | Entered Factory 16050 | -6/Factory | Accompanied by 5 allies 16050 | -6/Factory | Evolved 2 slots: Propulsion x1, Utility x1 16051 | -6/Factory | Identified exit to Factory 16051 | -6/Factory | Identified exit to Lower Caves 16052 | -6/Factory | Loaded intel: 26 terminal locations 16469 | -6/Factory | Assimilating Smith 5a into Collective. 16700 | -6/Factory | Assimilating Smith 5b into Collective. 16752 | -6/Factory | Entered Lower Caves 16752 | -6/Lower Caves | Accompanied by 6 allies 17562 | -6/Lower Caves | Assimilating Extractor 5a into Collective. 17731 | -6/Lower Caves | Attracted the attention of an 0b10 base 18027 | -6/Lower Caves | Spotted B-75 Beast 18040 | -6/Lower Caves | Allies destroyed B-75 Beast 18310 | -6/Lower Caves | Discovered new exit (range 15) 18425 | -6/Lower Caves | Learned Factory emergency access door positions 18499 | -6/Lower Caves | Entered another Lower Caves area 18499 | -6/Lower Caves | Accompanied by 6 allies 18499 | -6/Lower Caves | Discovered exit to Factory (range 13) 18508 | -6/Lower Caves | Entered a destroyed Warlord outpost 18891 | -6/Lower Caves | Learned Factory garrison access intel 18976 | -6/Lower Caves | Assimilating Extractor 5b into Collective. 19789 | -6/Lower Caves | Assimilating Analyst 5a into Collective. 19798 | -6/Lower Caves | Found Alien Artifact 19857 | -6/Lower Caves | Identified Core Expander 19857 | -6/Lower Caves | Installed Core Expander, added new Power slot 20460 | -6/Lower Caves | Discovered new exit (range 15) 20610 | -6/Lower Caves | Entered Zion 20610 | -6/Zion | Accompanied by 6 allies 20715 | -6/Zion | Received a visual enhancement algorithm 20759 | -6/Zion | Discovered new exit (range 13) 21270 | -6/Zion | Given the Hacking Drone Bay 21271 | -6/Zion | Found Prototype Device 21272 | -6/Zion | Identified Hacking Drone Bay 21488 | -6/Zion | Gained Derelict followers 21597 | -6/Zion | Found Prototype Special Weapon 21597 | -6/Zion | Identified RU-N14's Throwing Claymores 21601 | -6/Zion | Found RU-N14's Throwing Claymores 21604 | -6/Zion | Found RU-N14's Throwing Claymores 21615 | -6/Zion | Found RU-N14's Throwing Claymores 21815 | -6/Zion | Found CR-A16's Pointy Stick 21918 | -6/Zion | Gained Derelict followers 22041 | -6/Zion | Met Imprinter 22265 | -6/Zion | Discovered new exit (range 3) 22265 | -6/Zion | Saw the warning signs outside the Deep Caves entrance 22365 | -6/Zion | Assimilating WQ-0GT(i) into Collective. 23375 | -6/Zion | Entered Deep Caves 23375 | -6/Deep Caves | Accompanied by 12 allies 23689 | -6/Deep Caves | Allies destroyed Z-Imprinter 23762 | -6/Deep Caves | Found Prototype Protection 23762 | -6/Deep Caves | Identified Zio. Weapon Casing 23791 | -6/Deep Caves | Found Zio. Weapon Casing 23868 | -6/Deep Caves | Z-Facility disabled 24043 | -6/Deep Caves | Build established: Scavenger-Mutant 24085 | -6/Deep Caves | Assimilating YF-OYJ(p) into Collective. 24483 | -6/Deep Caves | Found Zio. Weapon Casing 24521 | -6/Deep Caves | Found Prototype Protection 24521 | -6/Deep Caves | Identified Zio. Heavy Carapace 25022 | -6/Deep Caves | Discovered new exit (range 6) 25204 | -6/Deep Caves | Spotted Golem 25243 | -6/Deep Caves | Destroyed Golem 25393 | -6/Deep Caves | Spotted Golem 25434 | -6/Deep Caves | Destroyed Golem 25458 | -6/Deep Caves | Lost 4 parts (1n3u) 25613 | -6/Deep Caves | Found Zio. Weapon Casing 25617 | -6/Deep Caves | Found Zio. Weapon Casing 25880 | -6/Deep Caves | Triggered Deep Caves wall 25880 | -6/Deep Caves | Spotted Assembler 25880 | -6/Deep Caves | Spotted Assembler 25891 | -6/Deep Caves | Exposed GOLEM chamber 25904 | -6/Deep Caves | Allies destroyed Assembler 25907 | -6/Deep Caves | Allies destroyed Assembler 25909 | -6/Deep Caves | Destroyed 27 combat bots 26010 | -6/Deep Caves | Found Prototype Device 26010 | -6/Deep Caves | Identified Supersonic Drone Bay 26053 | -6/Deep Caves | Found Mobile Assembly Unit 26080 | -6/Deep Caves | Found GOLEM Unit 26377 | -6/Deep Caves | Build established: Mutant 27022 | -6/Deep Caves | Found Surveybot 24 Chip 27025 | -6/Deep Caves | Found Surveybot 24 Scanner 27193 | -6/Deep Caves | Found Zio. Weapon Casing 27418 | -6/Deep Caves | Found GOLEM Unit 27427 | -6/Deep Caves | Found GOLEM Unit 28119 | -6/Deep Caves | Entered Proximity Caves 28119 | -5/Proximity Caves | Accompanied by 7 allies 28764 | -5/Proximity Caves | Attracted the attention of an 0b10 outpost 28839 | -5/Proximity Caves | Assimilating Fighter 6a into Collective. 29110 | -5/Proximity Caves | Assimilating Warrior 6a into Collective. 29992 | -5/Proximity Caves | Learned Factory stockpile data 30108 | -5/Proximity Caves | Learned Factory emergency access door positions 30247 | -5/Proximity Caves | Discovered exit to Factory (range 10) 30407 | -5/Proximity Caves | Received a Behemoth hack from an annoying Tinkerer 30902 | -5/Proximity Caves | Entered Factory 30902 | -5/Factory | Accompanied by 8 allies 30902 | -5/Factory | Evolved 2 slots: Propulsion x1, Utility x1 30903 | -5/Factory | Identified exit to Upper Caves 30906 | -5/Factory | Loaded intel: 4 garrison access locations 31142 | -5/Factory | Joined by Warlord Infantry squad 31356 | -5/Factory | Allies destroyed B-75 Beast 31537 | -5/Factory | Entered Upper Caves 31537 | -5/Upper Caves | Accompanied by 8 allies 31845 | -5/Upper Caves | Attracted the attention of an 0b10 base 32096 | -5/Upper Caves | Learned 4 Factory zone layouts 32152 | -5/Upper Caves | Attracted the attention of an 0b10 checkpoint 32181 | -5/Upper Caves | Learned Factory terminal intel 32493 | -5/Upper Caves | Assimilating Extractor 6a into Collective. 32784 | -5/Upper Caves | Spotted B-75 Beast 32803 | -5/Upper Caves | Allies destroyed B-75 Beast 32819 | -5/Upper Caves | Discovered new exit (range 16) 33776 | -5/Upper Caves | Entered another Upper Caves area 33776 | -5/Upper Caves | Accompanied by 6 allies 33852 | -5/Upper Caves | Identified exit to Factory 33854 | -5/Upper Caves | Attracted the attention of an 0b10 checkpoint 33954 | -5/Upper Caves | Learned location of 1 exit from Factory 34280 | -5/Upper Caves | Encountered a Warlord checkpoint 34290 | -5/Upper Caves | Assimilating Q8-I23(M) into Collective. 34515 | -5/Upper Caves | Assimilating Extractor 6b into Collective. 35310 | -5/Upper Caves | Attracted the attention of an 0b10 outpost 35325 | -5/Upper Caves | Discovered new exit (range 19) 35398 | -5/Upper Caves | Assimilating Fighter 6b into Collective. 35885 | -5/Upper Caves | Entered Zhirov 35885 | -5/Zhirov | Accompanied by 8 allies 35885 | -5/Zhirov | Discovered new exit (range 3) 35918 | -5/Zhirov | Met Zhirov 35950 | -5/Zhirov | Learned location of Quarantine (-2) 35950 | -5/Zhirov | Learned location of Testing (-3) 35950 | -5/Zhirov | Learned location of Command (-1) 35968 | -5/Zhirov | Zhirov requested help retrieving the SGEMP Prototype 35999 | -5/Zhirov | Found Alien Artifact 35999 | -5/Zhirov | Identified Integrated Reactor 35999 | -5/Zhirov | Installed Integrated Reactor, increased core energy generation (+10) 36024 | -5/Zhirov | Found Alien Artifact 36643 | -5/Zhirov | Cloak Generator disabled 36643 | -5/Zhirov | Attacked by Zhirov 36653 | -5/Zhirov | Enhanced Grunts warped into view 36677 | -5/Zhirov | Zhirov detonated his lab 37062 | -5/Zhirov | Assimilating Enhanced Grunt into Collective. 37696 | -5/Zhirov | Entered Proximity Caves 37696 | -4/Proximity Caves | Accompanied by 7 allies 37711 | -4/Proximity Caves | Spotter reported a threat 38010 | -4/Proximity Caves | Spotted B-86 Titan 38028 | -4/Proximity Caves | Allies destroyed B-86 Titan 38754 | -4/Proximity Caves | Learned 4 Research zone layouts 39087 | -4/Proximity Caves | Ambushed by research squad 39109 | -4/Proximity Caves | Assimilating Assassin 7a into Collective. 39813 | -4/Proximity Caves | Assimilating Cleanser 7a into Collective. 40266 | -4/Proximity Caves | Discovered exit to Factory (range 11) 40946 | -4/Proximity Caves | Assimilating Warrior 7a into Collective. 41063 | -4/Proximity Caves | Entered Factory 41063 | -4/Factory | Accompanied by 2 allies 41063 | -4/Factory | Evolved 2 slots: Propulsion x1, Utility x1 41064 | -4/Factory | Identified exit to Extension 41065 | -4/Factory | Identified exit to Upper Caves 41068 | -4/Factory | Loaded intel: 28 terminal locations 41133 | -4/Factory | Garrison activated, responded to threat 41140 | -4/Factory | Assimilating Assassin 7b into Collective. 41284 | -4/Factory | Build established: Scavenger-Mutant 41454 | -4/Factory | Assimilating Assassin 7c into Collective. 41460 | -4/Factory | Assimilating Veteran 7a into Collective. 41526 | -4/Factory | Discovered new exit (range 13) 41559 | -4/Factory | Discovered exit to Extension (range 15) 41591 | -4/Factory | Joined by Warlord Chimera squad 41618 | -4/Factory | Assimilating Sage 7a into Collective. 41623 | -4/Factory | Assimilating Sage 7b into Collective. 41652 | -4/Factory | Assimilating DU-2U7(M) into Collective. 41681 | -4/Factory | Entered Upper Caves 41681 | -4/Upper Caves | Accompanied by 4 allies 41687 | -4/Upper Caves | Assimilating Veteran 7b into Collective. 41783 | -4/Upper Caves | Build established: Mutant 42099 | -4/Upper Caves | Found Alien Artifact 42192 | -4/Upper Caves | Learned Research emergency access door positions 42195 | -4/Upper Caves | Spotted B-86 Titan 42207 | -4/Upper Caves | Allies destroyed B-86 Titan 42276 | -4/Upper Caves | Attracted the attention of an 0b10 base 42280 | -4/Upper Caves | Learned Factory stockpile data 42280 | -4/Upper Caves | Learned Research trap positions 42280 | -4/Upper Caves | Learned Factory trap positions 42280 | -4/Upper Caves | Learned 6 Lower Caves zone layouts 42523 | -4/Upper Caves | Assimilating Cleanser 7b into Collective. 42975 | -4/Upper Caves | Discovered new exit (range 15) 43445 | -4/Upper Caves | Assimilating IR-20N(S) into Collective. 43523 | -4/Upper Caves | Assimilating Cleanser 7c into Collective. 43820 | -4/Upper Caves | Entered another Upper Caves area 43820 | -4/Upper Caves | Accompanied by 6 allies 43863 | -4/Upper Caves | Discovered new exit (range 15) 44394 | -4/Upper Caves | Assimilating Cleanser 7d into Collective. 44562 | -4/Upper Caves | Entered an active Warlord outpost 44577 | -4/Upper Caves | Learned Extension terminal intel 44577 | -4/Upper Caves | Learned Research security intel 44577 | -4/Upper Caves | Learned Extension stockpile data 44582 | -4/Upper Caves | Identified exit to Warlord 44994 | -4/Upper Caves | Learned location of 1 exit from Research 45148 | -4/Upper Caves | Encountered a Warlord checkpoint 45164 | -4/Upper Caves | Learned Research emergency access door positions 46055 | -4/Upper Caves | Assimilating P5-AEU(g) into Collective. 46807 | -4/Upper Caves | Entered Warlord 46807 | -4/Warlord | Accompanied by 7 allies 47032 | -4/Warlord | Discovered new exit (range 12) 47049 | -4/Warlord | Identified Dimensional Node Initializer 47049 | -4/Warlord | Initialized slip node 47154 | -4/Warlord | Opened Warlord's prototype stash 47159 | -4/Warlord | Found Prototype Reactor 47164 | -4/Warlord | Found Prototype Processor 47164 | -4/Warlord | Identified Exp. Targeting Computer 47178 | -4/Warlord | Found Prototype Processor 47178 | -4/Warlord | Identified Exp. Target Analyzer 47182 | -4/Warlord | Found Prototype Device 47182 | -4/Warlord | Identified Exp. Focal Shield 47381 | -4/Warlord | Met Warlord 47406 | -4/Warlord | Warlord's base attacked by MAIN.C 47457 | -4/Warlord | Build established: Commander-Mutant 47460 | -4/Warlord | Identified Vortex Chain Reactor 47473 | -4/Warlord | Learned Quarantine stockpile data 47474 | -4/Warlord | Learned 4 Armory zone layouts 47476 | -4/Warlord | Learned Research garrison access intel 47476 | -4/Warlord | Learned Research scanalyzer intel 47476 | -4/Warlord | Learned Factory scanalyzer intel 47649 | -4/Warlord | P-70 Sage assimilated allied G2-NWV(Y) 47756 | -4/Warlord | Warlord forces counterattacked 47778 | -4/Warlord | Spotted Executioner 47779 | -4/Warlord | Spotted Striker 47786 | -4/Warlord | Allies destroyed Executioner 47801 | -4/Warlord | Spotted Striker 47806 | -4/Warlord | Allies destroyed Striker 47824 | -4/Warlord | Spotted Striker 47835 | -4/Warlord | Lost 8 allies 47839 | -4/Warlord | Allies destroyed Striker 47846 | -4/Warlord | Spotted Executioner 47854 | -4/Warlord | Allies destroyed Executioner 47906 | -4/Warlord | Spotted Executioner 47957 | -4/Warlord | Lost 5 allies 48007 | -4/Warlord | Entered Proximity Caves 48007 | -3/Proximity Caves | Accompanied by 7 allies 48011 | -3/Proximity Caves | Assimilating Archangel 7b into Collective. 48072 | -3/Proximity Caves | Build established: Mutant 48262 | -3/Proximity Caves | Spotted B-86 Titan 48276 | -3/Proximity Caves | Destroyed B-86 Titan 48420 | -3/Proximity Caves | Assimilating Assassin 7d into Collective. 48700 | -3/Proximity Caves | Attracted the attention of an 0b10 checkpoint 48791 | -3/Proximity Caves | Assimilating Cleanser 8a into Collective. 49065 | -3/Proximity Caves | Attracted the attention of an 0b10 base 49077 | -3/Proximity Caves | Learned 6 Upper Caves zone layouts 49077 | -3/Proximity Caves | Learned location of 1 exit from Research 49434 | -3/Proximity Caves | Discovered new exit (range 10) 49936 | -3/Proximity Caves | Entered Research 49936 | -3/Research | Accompanied by 7 allies 49936 | -3/Research | Evolved 2 slots: Propulsion x1, Utility x1 49937 | -3/Research | Identified exit to Research 49937 | -3/Research | Identified exit to Testing 49939 | -3/Research | Loaded intel: 89 trap records 49942 | -3/Research | Loaded intel: 6 scanalyzer locations 49943 | -3/Research | Loaded intel: 3 garrison access locations 50043 | -3/Research | Found Prototype Launcher 50130 | -3/Research | Identified Adv. Micro-nuke Launcher 50303 | -3/Research | Entered Testing 50303 | -3/Testing | Accompanied by 7 allies 50537 | -3/Testing | Found Prototype Leg 50537 | -3/Testing | Identified Myomer Exoskeleton 50678 | -3/Testing | Assimilating Analyst 8a into Collective. 50866 | -3/Testing | Found Prototype Device 50866 | -3/Testing | Identified Exp. Weapon Cycler 50873 | -3/Testing | Found Prototype Device 50873 | -3/Testing | Identified Exp. ECM Suite 51111 | -3/Testing | Watched by a mysterious "MATRIX" hacker. 51154 | -3/Testing | Assimilating Conveyor 8a into Collective. 51272 | -3/Testing | Found Prototype Launcher 51380 | -3/Testing | Found Prototype Device 51380 | -3/Testing | Identified Exp. Hardlight Generator 51441 | -3/Testing | Found Prototype Energy Cannon 51441 | -3/Testing | Identified Cld. Nova Cannon 51475 | -3/Testing | Discovered exit to Research (range 16) 51493 | -3/Testing | Assimilating Beamer 8a into Collective. 51639 | -3/Testing | Found Prototype Ballistic Cannon 52053 | -3/Testing | First assault squad dispatched 52160 | -3/Testing | Entered Research 52160 | -2/Research | Accompanied by 6 allies 52160 | -2/Research | Warlord forces began assault on 0b10 52160 | -2/Research | Evolved 2 slots: Utility x2 52185 | -2/Research | Distinguished unit "Viscera Detail" dispatched to help 52235 | -2/Research | Assimilating Artificer 9a into Collective. 52270 | -2/Research | Research machine network offline 52397 | -2/Research | Discovered new exit (range 114) 52474 | -2/Research | Met DD-05H 52474 | -2/Research | Met up with Warlord 52475 | -2/Research | Discovered new exit (range 15) 52515 | -2/Research | Borebot progress halted 52551 | -2/Research | Borebot progress halted 52638 | -2/Research | Borebot progress halted 52838 | -2/Research | P-80 Master assimilated allied H7-KFK(b) 52841 | -2/Research | P-80 Master assimilated allied 9L-OO8(l) 52851 | -2/Research | Spotted Executioner 52870 | -2/Research | Allies destroyed Executioner 52904 | -2/Research | Lost 8 allies 52956 | -2/Research | Entered Quarantine 52956 | -2/Quarantine | Accompanied by 7 allies 53059 | -2/Quarantine | Garrison activated, responded to threat 53091 | -2/Quarantine | P-80 Master assimilated allied Enforcer 9a 53119 | -2/Quarantine | Lost 3 allies 53160 | -2/Quarantine | Assimilating Annihilator 9a into Collective. 53160 | -2/Quarantine | Scanned by Researcher 53218 | -2/Quarantine | Found Alien Artifact 53315 | -2/Quarantine | Discovered new exit (range 23) 53423 | -2/Quarantine | Cryocooling Duct disabled 53438 | -2/Quarantine | Ambient heat levels rising (+20) 53438 | -2/Quarantine | Non-combat units ordered to evacuate 53566 | -2/Quarantine | Found Alien Artifact 53566 | -2/Quarantine | Identified Core Reset Matrix 53566 | -2/Quarantine | Identified Transdimensional Reconstructor 53566 | -2/Quarantine | Identified Subatomic Replicator 53566 | -2/Quarantine | Used Core Reset Matrix 53570 | -2/Quarantine | Detected hypermatrix surge 53570 | -2/Quarantine | Sensed 10 artifacts in vicinity 53585 | -2/Quarantine | Cryocooling Duct disabled 53600 | -2/Quarantine | Ambient heat levels rising (+20) 53600 | -2/Quarantine | Combat units ordered to evacuate 53700 | -2/Quarantine | Quarantine Guard activated 53794 | -2/Quarantine | Spotted Quarantine Guard 53813 | -2/Quarantine | Allies destroyed Quarantine Guard 54009 | -2/Quarantine | Spotted Quarantine Guard 54037 | -2/Quarantine | Allies destroyed Quarantine Guard 54080 | -2/Quarantine | Spotted Quarantine Guard 54089 | -2/Quarantine | Allies destroyed Quarantine Guard 54113 | -2/Quarantine | Spotted Quarantine Guard 54124 | -2/Quarantine | Allies destroyed Quarantine Guard 54154 | -2/Quarantine | Spotted Quarantine Guard 54163 | -2/Quarantine | Build established: Alien-Mutant 54164 | -2/Quarantine | Allies destroyed Quarantine Guard 54248 | -2/Quarantine | Spotted Quarantine Guard 54261 | -2/Quarantine | Allies destroyed Quarantine Guard 54561 | -2/Quarantine | Destroyed Borg P5-AEU(g) 54651 | -2/Quarantine | Assimilating as-75089 into Collective. 54707 | -2/Quarantine | Spotted Fortress 54732 | -2/Quarantine | Allies destroyed Fortress 54771 | -2/Quarantine | Lost 18 allies 54799 | -2/Quarantine | Assimilating as-15805 into Collective. 54812 | -2/Quarantine | Assimilating as-36370 into Collective. 54816 | -2/Quarantine | Assimilating as-92696 into Collective. 54825 | -2/Quarantine | Assimilating as-06632 into Collective. 54870 | -2/Quarantine | Found Hpw. Transdimensional Reconstructor 54875 | -2/Quarantine | Found Transdimensional Reconstructor 54882 | -2/Quarantine | Found Dimensional Node Initializer 55033 | -2/Quarantine | Spotted Quarantine Guard 55034 | -2/Quarantine | Allies destroyed Quarantine Guard 55073 | -2/Quarantine | Found Sigix Corpse 55087 | -2/Quarantine | Found Sigix Corpse 55186 | -2/Quarantine | Met incapacitated Sigix Warrior 55186 | -2/Quarantine | Lockdown squad dispatched 55190 | -2/Quarantine | Acquired the access code to the Sigix quarantine chamber 55193 | -2/Quarantine | Unlocked Sigix quarantine chamber 55311 | -2/Quarantine | Spotted Lightning 55311 | -2/Quarantine | Spotted Lightning 55311 | -2/Quarantine | Spotted Lightning 55321 | -2/Quarantine | Destroyed Lightning 55324 | -2/Quarantine | Allies destroyed Lightning 55335 | -2/Quarantine | Assimilating Lightning into Collective. 55349 | -2/Quarantine | Lost 3 allies 55560 | -2/Quarantine | Discovered new exit (range 6) 55560 | -2/Quarantine | Discovered new exit (range 6) 55560 | -2/Quarantine | Spotted Quarantine Guard 55560 | -2/Quarantine | Spotted Quarantine Guard 55567 | -2/Quarantine | Allies destroyed Quarantine Guard 55569 | -2/Quarantine | Allies destroyed Quarantine Guard 55623 | -2/Quarantine | Entered Section 7 55623 | -2/Section 7 | Accompanied by 7 allies 55624 | -2/Section 7 | Detected hypermatrix surge 55624 | -2/Section 7 | Sensed 22 artifacts in vicinity 55681 | -2/Section 7 | Spotted S7 Guard 55688 | -2/Section 7 | Destroyed S7 Guard 55709 | -2/Section 7 | Found Core Membrane 55709 | -2/Section 7 | Installed Core Membrane, gained immunity to corruption 55725 | -2/Section 7 | Found Corrupted Prototype Protection 55777 | -2/Section 7 | Garrison activated, responded to threat 55800 | -2/Section 7 | Discovered new exit (range 13) 55825 | -2/Section 7 | Initialized slip node 55873 | -2/Section 7 | First assault squad dispatched 55939 | -2/Section 7 | Found Microwarp Drive 56007 | -2/Section 7 | Spotted Executioner 56007 | -2/Section 7 | Spotted Executioner 56009 | -2/Section 7 | Allies destroyed Executioner 56015 | -2/Section 7 | Allies destroyed Executioner 56087 | -2/Section 7 | Spotted B-99 Colossus 56101 | -2/Section 7 | Destroyed B-99 Colossus 56166 | -2/Section 7 | Found LRC Storage 56166 | -2/Section 7 | Installed LRC Storage, increased inventory capacity (+2) 56173 | -2/Section 7 | Found LRC Storage 56173 | -2/Section 7 | Installed LRC Storage, increased inventory capacity (+2) 56245 | -2/Section 7 | Assimilating Terminator 9a into Collective. 56365 | -2/Section 7 | Found Exp. Targeting Computer 56397 | -2/Section 7 | Assimilating Artificer 9b into Collective. 56494 | -2/Section 7 | Spotted S7 Guard 56514 | -2/Section 7 | Garrison activated, responded to threat 56518 | -2/Section 7 | Entered Access 56518 | -1/Access | Accompanied by 5 allies 56518 | -1/Access | Evolved 2 slots: Power x1, Propulsion x1 56596 | -1/Access | Lost 4 allies 56697 | -1/Access | Identified Z-bomb Delivery System 56720 | -1/Access | Assimilating Master 10a into Collective. 56786 | -1/Access | Garrison activated, responded to threat 56933 | -1/Access | Discovered new exit (range 8) 56966 | -1/Access | Entered Command 56966 | -1/Command | Accompanied by 5 allies 57087 | -1/Command | Repaired Exp. Utility Shielding 57216 | -1/Command | First assault squad dispatched 57302 | -1/Command | Build established: Hacker-Mutant 57320 | -1/Command | Assimilating Enforcer 10a into Collective. 57326 | -1/Command | Assimilating Champion 10a into Collective. 57334 | -1/Command | Assimilating Enforcer 10b into Collective. 57380 | -1/Command | Assimilating Artificer 10a into Collective. 57484 | -1/Command | High security lockdown imminent 57536 | -1/Command | Assimilating Serf 10a into Collective. 57554 | -1/Command | Assimilating Master 10b into Collective. 57564 | -1/Command | High security lockdown engaged 57587 | -1/Command | Spotted Executioner 57587 | -1/Command | Spotted Executioner 57587 | -1/Command | Spotted Executioner 57587 | -1/Command | Spotted Executioner 57587 | -1/Command | Spotted Striker 57587 | -1/Command | Spotted Striker 57587 | -1/Command | Spotted Alpha 7 57587 | -1/Command | Spotted Alpha 7 57587 | -1/Command | Spotted B-99 Colossus 57587 | -1/Command | Spotted B-99 Colossus 57588 | -1/Command | Discovered new exit (range 4) 57592 | -1/Command | Used Subatomic Replicator to replicate Sigix Corpse 57597 | *** | Heading to fleet! Last Messages --------------- 57595_ Slug penetrates Wall. 57595_ Slug penetrates Access Shell. 57595_ Slug penetrates Wall. 57595_ Penetrated by Slug. 57595_ Borg Artificer 10a knocked back. 57596_ Borg Serf 10a destroyed. 57596_ Core damaged by loss of Borg Serf 10a (-2). 57596_ Slug penetrates Wall. 57596_ Acquired Sigix Corpse. 57597_ Borg Artificer 10a suffers critical hit (Destroy). 57597_ Slug penetrates Striker. 57597_ Slug penetrates Wall. 57597_ Slug penetrates Alpha 7. 57597_ Slug penetrates Wall. 57597_ Slug penetrates Borg Artificer 10a. 57597_ Slug penetrates M-36 Artificer. 57597_ Slug penetrates Borg Artificer 10a. 57597_ Borg Artificer 10a suffers critical hit (Destroy). 57597_ Slug penetrates Striker. [Achievement: Undertaker] Map ----- +----------------------------------------------------+ | ?????????????????????????????????????????????""""? | | ?????????????????????????????????????????????????? | | ?????????????????????????????????????????????????? | | ?????????????????????????????????????????????????? | | ?????????????????????????????????????????????????? | | ?????????????????????????????????????????????????? | | ?????????????????????????????????????????????????? | | ?????????????????????????????????????????????????? | | ??????????????????????H??????????????????????????? | | ?????????????????????????????????????????????????? | | ????????????????????????????????????????????###### | | ????????????????????????????????????????????# | | ????????????????????????????????????????????# | | ????????????????????????????????????????????# | | ???????????????????????????????????????????## | | ??????????????????????????????????????????? / "" | | ????????????????????????????????????????????# """ | | ????????????????????????????????????????????# ["T | | ???????????????????##?###########???????????#[=""" | | ???????????????????# BB#???????????# "" | | ???????????????????# ? BB#########???# | | ?????????????""????# ^ # # # # ### # | | | ?????????????""????# " % E ^ E 7 #!g;###; | | ?????????????T"????# " % ^ K^ [/%%= | | ?????????????""????# " "" " ^^ ^^ /%= % | | ?????????????""????# % " @" ^ ^^ ^^ m! % | | ???????????????????# ?" % ^%m^ / | | ???????????????????# ?"""" E^ E!K7 ####+### | | ???????????????????# ???? ^ # # # # ###? ?? | | ???????????????????# ???? BB#?#?#####??# ? | | ???????????????????#????? BB#??????????# "" | | ??????????????????????????#######??????????# """ | | ???????????????????????????????????????????# "R | | ???????????????????????????????????????????# """ | | ???????????????????????????????????????###?# """ | | ?????????????????????????????????????# """?# ??? | | ?????????????????????????????????????#""T""# ???? | | ?????????????????????????????????#####"" ""####### | | ?????????????????????????????? == [ ! | | ?????????????????????????????? = ! =% %= | | ?????????????????????""??????? ![!!= | | ????????????????????""""??????? =! | | ????????????????????""""??????? = #### | | ?????????????????????""????????? ""%= #??? | | ???????????????????????????????? """! = #??? | | ???????????????????????????????? """" #??? | | ????????????????????????????????? ?? "" #??? | | ????????????????????????????????? ???? #??? | | ????????????????????????????????????? #??? | | ????????????????????????????????????? #??? | +----------------------------------------------------+ Best States ------------- Heat Dissipation 94 Coolant Potential 120 Energy Generation 89 Energy Capacity 2110 Matter Stores 900 Matter Capacity 1100 Sight Range 16 Terrain Scan Density 10 Jamming Range 14 Additional Mass Support 9 Armor Coverage 2000 Resistance: KI 15 Resistance: TH 15 Resistance: EX 15 Resistance: EM 15 Resistance: I 15 Resistance: S 15 Resistance: P 15 Utility Shielding 90 Weapon Shielding 100 Point Defense Rating 160 Weapon Cycling 30 Phase Shifting 8 Evasion (%) 88 Targeting Accuracy 12 Target Analysis 10 Core Analysis 8 Recoil Reduction 2 Offensive Hacking 42 Defensive Hacking 10 Authchip Count 1 Item Schematics ----------------- Exp. Coolant Injector | -2/Quarantine | Archive Helical Railgun | -2/Quarantine | Archive Exp. Heat Sink | -2/Quarantine | Archive Exp. Signal Interpreter | -2/Quarantine | Archive Com. Linear Accelerator | -2/Section 7 | Archive Exp. Transmission Jammer | -2/Section 7 | Archive Robot Schematics ------------------ T-07 Excavator | -2/Quarantine | Archive A-02 Transporter | -2/Quarantine | Archive B-74 Champion | -2/Quarantine | Archive Fabricated ------------ Nothing Repaired ---------- Lgt. Treads | 42% | -10/Materials | Broken Exp. Utility Shielding | 17% | -1/Command Studied --------- Centrium Leg | -2/Quarantine | Hacked Imp. Thunder Leg | -1/Access | Hacked Adv. Remote Datajack | -1/Access | Hacked Alien Tech Used ----------------- Core Expander Integrated Reactor Dimensional Node Initializer Core Reset Matrix Core Membrane LRC Storage Microwarp Drive Subatomic Replicator Achievements -------------- Freedom! Undertaker We Are The Borg Challenges ------------ None Game ------ Seed GhostAerolevCasing Manual? 0 Play Time 14:25:52 Cumulative 763.6 hours Start 2026.04.27 @ 19:02:55 End 2026.05.03 @ 22:00:53 Sessions 5 Manual Loads 0 Difficulty Rogue Special Mode None Game No. 70 Rogue 67 Adventurer 3 Explorer 0 Win Type 2 Total 26 Types 9/2/7/2/1/1/1/1/1/1 Lore% 86 Gallery% 89 Achievement% 85 Wizard Run 0 Options --------- Layout 0 ASCII 0 Keyboard 0 Movement Numpad Keybinds 0 Fullscreen 1 Font 18/SmallcapsGlow Map View 76x50 Zoom Use 0% Tactical HUD 1 Map Filters NONE Filters NONE Steam 1 RUN: 7c5b95ff-3156-4212-8869-4d1d27ea2f80